Workbook

Sheet Macro Data
B5: Decom Inflation | C5: 0.04191571816
B7: Total Contribution | C7: 6758605
B8: Plant Contribution | D8: =ROUND(C7-D9,0) -> 6242226
B9: ISFSI Contribution | D9: =ROUND('Fund Proj - ISFSI'!D12,0) -> 516379
B10: Difference | E10: =C7-SUM(D8:D9) -> 0
B12: Ending Balance
B13: Plant | C13: ='Fund Proj - Plant'!D9 -> -1.087784767e-06
B14: ISFSI | C14: ='Fund Proj - ISFSI'!D9 -> 2.339947969e-08
B15: Total | C15: =SUM(C13:C14) -> -1.064385287e-06
B28: Ending balance < $0.001? "0" = Yes; "1" = No | C28: =IF(ABS(C15)<0.001,0,1) -> 0

Sheet Decom Expense Proj
B2: Ameren Missouri
B3: Callaway Energy Center Tax-Qualified Nuclear Decommissioning Trust Fund Projection
B5: Decommissioning Expense Calculation
B7: Decommissioning Cost Estimate
G8: Plant Decommissioning | L8: ISFSI Decommissioning | N8: Combined Plant & ISFSI Decommissioning
B9: License Termination Decommissioning Expenditures | G9: 855393000 | L9: 9152000 | N9: =G9+L9 -> 864545000
B10: Spent Fuel Management Decommissioning Expenditures | G10: 69200000 | L10: 0 | N10: =G10+L10 -> 69200000
B11: Site Restoration Decommissioning Expenditures | G11: 111667000 | L11: 1423000 | N11: =G11+L11 -> 113090000
B12: Total Decommissioning Cost Estimate: | G12: =SUM(G9:G11) -> 1036260000 | L12: =SUM(L9:L11) -> 10575000 | N12: =SUM(N9:N11) -> 1046835000
B14: Estimate in Terms of Year xxxx Dollars | G14: 2020 | L14: 2020
B16: Estimate Based On: | G16: 2020 TLG Study | L16: 2020 TLG Study | N16: 2020 TLG Study
B18: Decommissioning Inflation: | G18: ='Macro Data'!C5 -> 0.04191571816 | L18: =G18 -> 0.04191571816 | N18: =G18 -> 0.04191571816
D20: DECOMMISSIONING EXPENSE CALCULATION | I20: DECOMMISSIONING EXPENSE CALCULATION | N20: DECOMMISSIONING EXPENSE CALCULATION
D21: PLANT DECOMMISSIONING | I21: ISFSI DECOMMISSIONING | N21: COMBINED
F23: Inflation Factor At | K23: Inflation Factor At
D24: =G14&"$" -> 2020$ | E24: # of | F24: =G18 -> 0.04191571816 | G24: (Inflated $$) | I24: =L14&"$" -> 2020$ | J24: # of | K24: =L18 -> 0.04191571816 | L24: (Inflated $$) | N24: (Inflated $$)
D25: Decommissioning | E25: Years of | F25: Decommissioning | G25: Decommissioning | I25: Decommissioning | J25: Years of | K25: Decommissioning | L25: Decommissioning | N25: Decommissioning
B26: Year | D26: Expenses | E26: Inflation | F26: Inflation Rate | G26: Expenses | I26: Expenses | J26: Inflation | K26: Inflation Rate | L26: Expenses | N26: Expenses
B28: TOTALS: | D28: =SUM(D30:D129) -> 1036260000 | G28: =SUM(G30:G129) -> 3249339382 | I28: =SUM(I30:I129) -> 10576000 | L28: =SUM(L30:L129) -> 36658552.15 | N28: =G28+L28 -> 3285997934
B30: 2020 | D30: 0 | E30: =B30-G$14 -> 0 | F30: =(1+G$18)^E30 -> 1 | G30: =D30*F30 -> 0 | I30: 0 | J30: =B30-L$14 -> 0 | K30: =(1+L$18)^J30 -> 1 | L30: =I30*K30 -> 0 | N30: =G30+L30 -> 0
B31: =B30+1 -> 2021 | D31: 0 | E31: 1 | F31: 1.041915718 | G31: 0 | I31: 0 | J31: =B31-L$14 -> 1 | K31: =(1+L$18)^J31 -> 1.041915718 | L31: 0 | N31: =G31+L31 -> 0
B32: =B31+1 -> 2022 | D32: 0 | E32: 2 | F32: 1.085588364 | G32: 0 | I32: 0 | J32: 2 | K32: 1.085588364 | L32: 0 | N32: 0
B33: 2023 | D33: 0 | E33: 3 | F33: 1.13109158 | G33: 0 | I33: 0 | J33: 3 | K33: 1.13109158 | L33: 0 | N33: 0
B34: 2024 | D34: 0 | E34: 4 | F34: 1.178502095 | G34: 0 | I34: 0 | J34: 4 | K34: 1.178502095 | L34: 0 | N34: 0
B35: 2025 | D35: 0 | E35: 5 | F35: 1.227899857 | G35: 0 | I35: 0 | J35: 5 | K35: 1.227899857 | L35: 0 | N35: 0
B36: 2026 | D36: 0 | E36: 6 | F36: 1.279368162 | G36: 0 | I36: 0 | J36: 6 | K36: 1.279368162 | L36: 0 | N36: 0
B37: 2027 | D37: 0 | E37: 7 | F37: 1.332993797 | G37: 0 | I37: 0 | J37: 7 | K37: 1.332993797 | L37: 0 | N37: 0
B38: 2028 | D38: 0 | E38: 8 | F38: 1.388867189 | G38: 0 | I38: 0 | J38: 8 | K38: 1.388867189 | L38: 0 | N38: 0
B39: 2029 | D39: 0 | E39: 9 | F39: 1.447082555 | G39: 0 | I39: 0 | J39: 9 | K39: 1.447082555 | L39: 0 | N39: 0
B40: 2030 | D40: 0 | E40: 10 | F40: 1.507738059 | G40: 0 | I40: 0 | J40: 10 | K40: 1.507738059 | L40: 0 | N40: 0
B41: 2031 | D41: 0 | E41: 11 | F41: 1.570935983 | G41: 0 | I41: 0 | J41: 11 | K41: 1.570935983 | L41: 0 | N41: 0
B42: 2032 | D42: 0 | E42: 12 | F42: 1.636782893 | G42: 0 | I42: 0 | J42: 12 | K42: 1.636782893 | L42: 0 | N42: 0
B43: 2033 | D43: 0 | E43: 13 | F43: 1.705389823 | G43: 0 | I43: 0 | J43: 13 | K43: 1.705389823 | L43: 0 | N43: 0
B44: 2034 | D44: 0 | E44: 14 | F44: 1.776872462 | G44: 0 | I44: 0 | J44: 14 | K44: 1.776872462 | L44: 0 | N44: 0
B45: 2035 | D45: 0 | E45: 15 | F45: 1.851351348 | G45: 0 | I45: 0 | J45: 15 | K45: 1.851351348 | L45: 0 | N45: 0
B46: 2036 | D46: 0 | E46: 16 | F46: 1.928952069 | G46: 0 | I46: 0 | J46: 16 | K46: 1.928952069 | L46: 0 | N46: 0
B47: 2037 | D47: 0 | E47: 17 | F47: 2.00980548 | G47: 0 | I47: 0 | J47: 17 | K47: 2.00980548 | L47: 0 | N47: 0
B48: 2038 | D48: 0 | E48: 18 | F48: 2.09404792 | G48: 0 | I48: 0 | J48: 18 | K48: 2.09404792 | L48: 0 | N48: 0
B49: 2039 | D49: 0 | E49: 19 | F49: 2.181821443 | G49: 0 | I49: 0 | J49: 19 | K49: 2.181821443 | L49: 0 | N49: 0
B50: 2040 | D50: 0 | E50: 20 | F50: 2.273274055 | G50: 0 | I50: 0 | J50: 20 | K50: 2.273274055 | L50: 0 | N50: 0
B51: 2041 | D51: 0 | E51: 21 | F51: 2.36855997 | G51: 0 | I51: 0 | J51: 21 | K51: 2.36855997 | L51: 0 | N51: 0
B52: 2042 | D52: 0 | E52: 22 | F52: 2.467839862 | G52: 0 | I52: 0 | J52: 22 | K52: 2.467839862 | L52: 0 | N52: 0
B53: 2043 | D53: 0 | E53: 23 | F53: 2.571281142 | G53: 0 | I53: 0 | J53: 23 | K53: 2.571281142 | L53: 0 | N53: 0
B54: 2044 | D54: 21904000 | E54: 24 | F54: 2.679058238 | G54: 58682091.64 | I54: 0 | J54: 24 | K54: 2.679058238 | L54: 0 | N54: 58682091.64
B55: 2045 | D55: 121383000 | E55: 25 | F55: 2.791352888 | G55: 338822787.6 | I55: 0 | J55: 25 | K55: 2.791352888 | L55: 0 | N55: 338822787.6
B56: 2046 | D56: 196730000 | E56: 26 | F56: 2.908354449 | G56: 572160570.7 | I56: 0 | J56: 26 | K56: 2.908354449 | L56: 0 | N56: 572160570.7
B57: 2047 | D57: 204473000 | E57: 27 | F57: 3.030260214 | G57: 619606396.8 | I57: 0 | J57: 27 | K57: 3.030260214 | L57: 0 | N57: 619606396.8
B58: 2048 | D58: 141058000 | E58: 28 | F58: 3.157275747 | G58: 445359002.3 | I58: 0 | J58: 28 | K58: 3.157275747 | L58: 0 | N58: 445359002.3
B59: 2049 | D59: 134139000 | E59: 29 | F59: 3.289615227 | G59: 441265697 | I59: 0 | J59: 29 | K59: 3.289615227 | L59: 0 | N59: 441265697
B60: 2050 | D60: 90908000 | E60: 30 | F60: 3.427501812 | G60: 311587334.7 | I60: 9152000 | J60: 30 | K60: 3.427501812 | L60: 31368496.59 | N60: 342955831.3
B61: 2051 | D61: 51897000 | E61: 31 | F61: 3.571168012 | G61: 185332906.3 | I61: 270000 | J61: 31 | K61: 3.571168012 | L61: 964215.3633 | N61: 186297121.7
B62: 2052 | D62: 60672000 | E62: 32 | F62: 3.720856084 | G62: 225751780.3 | I62: 949000 | J62: 32 | K62: 3.720856084 | L62: 3531092.424 | N62: 229282872.8
B63: 2053 | D63: 13096000 | E63: 33 | F63: 3.876818439 | G63: 50770814.28 | I63: 205000 | J63: 33 | K63: 3.876818439 | L63: 794747.78 | N63: 51565562.06
B64: 2054 | D64: 0 | E64: 34 | F64: 4.039318068 | G64: 0 | I64: 0 | J64: 34 | K64: 4.039318068 | L64: 0 | N64: 0
B65: 2055 | D65: 0 | E65: 35 | F65: 4.208628986 | G65: 0 | I65: 0 | J65: 35 | K65: 4.208628986 | L65: 0 | N65: 0
B66: 2056 | D66: 0 | E66: 36 | F66: 4.385036692 | G66: 0 | I66: 0 | J66: 36 | K66: 4.385036692 | L66: 0 | N66: 0
B67: 2057 | D67: 0 | E67: 37 | F67: 4.568838654 | G67: 0 | I67: 0 | J67: 37 | K67: 4.568838654 | L67: 0 | N67: 0
B68: 2058 | D68: 0 | E68: 38 | F68: 4.760344807 | G68: 0 | I68: 0 | J68: 38 | K68: 4.760344807 | L68: 0 | N68: 0
B69: =B68+1 -> 2059 | D69: 0 | E69: 39 | F69: 4.959878079 | G69: 0 | I69: 0 | J69: 39 | K69: 4.959878079 | L69: 0 | N69: 0

Sheet Fund Proj - Plant
B2: Ameren Missouri
B3: Callaway Energy Center Tax-Qualified Nuclear Decommissioning Trust Fund Projection
B5: Plant Decommissioning Fund Projection
B8: 2020-09-30 | C8: Fund Balance: | D8: 814003088 | E8: Equity Allocation: | G8: 0.65 | H8: Federal Income Tax Rate: | K8: 0.2
B9: 2053-12-31 | C9: EOY Fund Balance: | D9: =J66 -> -1.087784767e-06 | E9: Bond Allocation: | G9: 0.35 | H9: Missouri State Income Tax Rate: | K9: 0
E10: Switch Out of Equities at End-Of-Year: | G10: 2043 | H10: Percentage of Federal Taxes Deductible on MO Taxes: | K10: 0.5
B11: Current contribution: | D11: 6323396 | H11: Composite Federal & State Income Tax Rate: | K11: =(K8+K9-(K8*K9*(1+K10)))/(1-(K8*K9*K10)) -> 0.2
B12: Revised contribution: | D12: ='Macro Data'!D8 -> 6242226 | E12: Nominal Pre-Tax & Expense Returns
E13: Bonds: | G13: 0.032 | H13: Management & Trust Fees: (BP) | K13: 15
B14: CPI Inflation: | D14: =((2.1+2.2)/2)/100 -> 0.0215 | E14: Equities: | G14: 0.085
B15: Decommissioning Inflation: | D15: ='Macro Data'!C5 -> 0.04191571816 | E15: Weighted Average - Bonds & Equities: | G15: =(G8*G14)+(G9*G13) -> 0.06645
B17: Effective Date of Revised Annual Contribution | E17: Real Pre-Tax & Expense Returns
C18: Year: | D18: 2021 | E18: Bonds: | G18: =G13-D14 -> 0.0105
C19: Quarter: | D19: 1 | E19: Equities: | G19: =G14-D14 -> 0.0635
E20: Weighted Average - Bonds & Equities: | G20: =G15-D14 -> 0.04495
B23: Fund Projections
D24: Annual
D25: Cash Inflow From | F25: Investment
D26: Contributions | E26: Pre | F26: Management | G26: Federal & State | H26: After | I26: Decommissioning
B27: Year Ending | C27: Beginning-of-Year | D27: To | E27: Tax & Fee | F27: & Trust | G27: Income | H27: Tax & Fee | I27: Expenses | J27: End-Of-Year
B28: December 31, 20xx | C28: Balance | D28: Fund | E28: Income | F28: Fees | G28: Taxes | H28: Income | I28: (Inflated $$) | J28: Balance
B30: TOTAL | D30: =SUM(D33:D72) -> 151722401.3 | E30: 2933272284 | F30: 78754918.67 | G30: 570903473.1 | H30: 2283613892 | I30: 3249339382
B32: =B8 -> 2020-09-30 | J32: =D8 -> 814003088
B33: 2020 | C33: =J32 -> 814003088 | D33: =((1/4)*D11) -> 1580849 | E33: =((C33+(D33/2)-(I33/2))*(3/12))*(IF(B33<=G$10,G$15,G$13)) -> 13535757.23 | F33: =(K$13/10000)*((C33+(D33/2)+(E33/2)-(I33/2))*(3/12)) -> 308085.5217 | G33: =K$11*(E33-F33) -> 2645534.341 | H33: =E33-F33-G33 -> 10582137.36 | I33: ='Decom Expense Proj'!G30 -> 0 | J33: =C33+D33+H33-I33 -> 826166074.3
B34: =B33+1 -> 2021 | C34: =J33 -> 826166074.3 | D34: =((1/4)*D11)+((3/4)*D12) -> 6262518.5 | E34: =((C34+(D34/2)-(I34/2))*(12/12))*(IF(B34<=G$10,G$15,G$13)) -> 55106807.82 | F34: =(K$13/10000)*((C34+(D34/2)+(E34/2)-(I34/2))*(12/12)) -> 1285276.106 | G34: =K$11*(E34-F34) -> 10764306.34 | H34: 43057225.37 | I34: ='Decom Expense Proj'!G31 -> 0 | J34: 875485818.2
B35: 2022 | C35: 875485818.2 | D35: =D$12 -> 6242226 | E35: 58383430.58 | F35: =(K$13/10000)*((C35+(D35/2)+(E35/2)-(I35/2))*(12/12)) -> 1361697.97 | G35: 11404346.52 | H35: 45617386.09 | I35: ='Decom Expense Proj'!G32 -> 0 | J35: 927345430.3
B36: 2023 | C36: 927345430.3 | D36: =D$12 -> 6242226 | E36: 61829501.8 | F36: 1442071.941 | G36: 12077485.97 | H36: 48309943.89 | I36: ='Decom Expense Proj'!G33 -> 0 | J36: 981897600.2
B37: 2024 | C37: 981897600.2 | D37: 6242226 | E37: 65454493.49 | F37: 1526618.94 | G37: 12785574.91 | H37: 51142299.64 | I37: ='Decom Expense Proj'!G34 -> 0 | J37: 1039282126
B38: 2025 | C38: 1039282126 | D38: 6242226 | E38: 69267695.22 | F38: 1615555.63 | G38: 13530427.92 | H38: 54121711.67 | I38: ='Decom Expense Proj'!G35 -> 0 | J38: 1099646063
B39: 2026 | C39: 1099646063 | D39: 6242226 | E39: 73278878.88 | F39: 1709109.924 | G39: 14313953.79 | H39: 57255815.16 | I39: ='Decom Expense Proj'!G36 -> 0 | J39: 1163144105
B40: 2027 | C40: 1163144105 | D40: 6242226 | E40: 77498323.71 | F40: 1807521.569 | G40: 15138160.43 | H40: 60552641.71 | I40: ='Decom Expense Proj'!G37 -> 0 | J40: 1229938972
B41: 2028 | C41: 1229938972 | D41: 6242226 | E41: 81936842.67 | F41: 1911042.76 | G41: 16005159.98 | H41: 64020639.93 | I41: ='Decom Expense Proj'!G38 -> 0 | J41: 1300201838
B42: 2029 | C42: 1300201838 | D42: 6242226 | E42: 86605810.11 | F42: 2019938.785 | G42: 16917174.27 | H42: 67668697.06 | I42: ='Decom Expense Proj'!G39 -> 0 | J42: 1374112761
B43: 2030 | C43: 1374112761 | D43: 6242226 | E43: 91517190.95 | F43: 2134488.705 | G43: 17876540.45 | H43: 71506161.8 | I43: ='Decom Expense Proj'!G40 -> 0 | J43: 1451861149
B44: 2031 | C44: 1451861149 | D44: 6242226 | E44: 96683571.32 | F44: 2254986.072 | G44: 18885717.05 | H44: 75542868.2 | I44: ='Decom Expense Proj'!G41 -> 0 | J44: 1533646243
B45: 2032 | C45: 1533646243 | D45: 6242226 | E45: 102118190.8 | F45: 2381739.678 | G45: 19947290.23 | H45: 79789160.92 | I45: ='Decom Expense Proj'!G42 -> 0 | J45: 1619677630
B46: 2033 | C46: 1619677630 | D46: 6242226 | E46: 107834976.5 | F46: 2515074.347 | G46: 21063980.43 | H46: 84255921.71 | I46: ='Decom Expense Proj'!G43 -> 0 | J46: 1710175778
B47: 2034 | C47: 1710175778 | D47: 6242226 | E47: 113848578.4 | F47: 2655331.77 | G47: 22238649.33 | H47: 88954597.31 | I47: ='Decom Expense Proj'!G44 -> 0 | J47: 1805372601
B48: 2035 | C48: 1805372601 | D48: 6242226 | E48: 120174407.3 | F48: 2802871.377 | G48: 23474307.19 | H48: 93897228.75 | I48: ='Decom Expense Proj'!G45 -> 0 | J48: 1905512056
B49: 2036 | C49: 1905512056 | D49: 6242226 | E49: 126828674.1 | F49: 2958071.259 | G49: 24774120.56 | H49: 99096482.26 | I49: ='Decom Expense Proj'!G46 -> 0 | J49: 2010850764
B50: 2037 | C50: 2010850764 | D50: 6242226 | E50: 133828431.2 | F50: 3121329.139 | G50: 26141420.42 | H50: 104565681.7 | I50: ='Decom Expense Proj'!G47 -> 0 | J50: 2121658672
B51: 2038 | C51: 2121658672 | D51: 6242226 | E51: 141191616.7 | F51: 3293063.39 | G51: 27579710.66 | H51: 110318842.7 | I51: ='Decom Expense Proj'!G48 -> 0 | J51: 2238219741
B52: 2039 | C52: 2238219741 | D52: 6242226 | E52: 148937099.7 | F52: 3473714.105 | G52: 29092677.12 | H52: 116370708.5 | I52: ='Decom Expense Proj'!G49 -> 0 | J52: 2360832675
B53: 2040 | C53: 2360832675 | D53: 6242226 | E53: 157084729.2 | F53: 3663744.229 | G53: 30684197 | H53: 122736788 | I53: ='Decom Expense Proj'!G50 -> 0 | J53: 2489811689
B54: 2041 | C54: 2489811689 | D54: 6242226 | E54: 165655384.7 | F54: 3863640.742 | G54: 32358348.79 | H54: 129433395.2 | I54: ='Decom Expense Proj'!G51 -> 0 | J54: 2625487310
B55: 2042 | C55: 2625487310 | D55: 6242226 | E55: 174671029.7 | F55: 4073915.907 | G55: 34119422.76 | H55: 136477691.1 | I55: ='Decom Expense Proj'!G52 -> 0 | J55: 2768207227
B56: 2043 | C56: 2768207227 | D56: 6242226 | E56: 184154768.2 | F56: 4295108.587 | G56: 35971931.93 | H56: 143887727.7 | I56: ='Decom Expense Proj'!G53 -> 0 | J56: 2918337181
B57: 2044 | C57: 2918337181 | D57: =D56+((18/365)*D56) -> 6550061.803 | E57: 92552677.32 | F57: 4407821.257 | G57: 17628971.21 | H57: 70515884.85 | I57: ='Decom Expense Proj'!G54 -> 58682091.64 | J57: 2936721036
B58: 2045 | C58: 2936721036 | D58: 0 | E58: 88553908.55 | F58: 4217379.895 | G58: 16867305.73 | H58: 67469222.93 | I58: ='Decom Expense Proj'!G55 -> 338822787.6 | J58: 2665367471
B59: 2046 | C59: 2665367471 | D59: 0 | E59: 76137189.95 | F59: 3626033.672 | G59: 14502231.26 | H59: 58008925.03 | I59: ='Decom Expense Proj'!G56 -> 572160570.7 | J59: 2151215826
B60: 2047 | C60: 2151215826 | D60: 0 | E60: 58925204.08 | F60: 2806312.844 | G60: 11223778.25 | H60: 44895112.99 | I60: ='Decom Expense Proj'!G57 -> 619606396.8 | J60: 1576504542
B61: 2048 | C61: 1576504542 | D61: 0 | E61: 43322401.31 | F61: 2063229.362 | G61: 8251834.389 | H61: 33007337.56 | I61: ='Decom Expense Proj'!G58 -> 445359002.3 | J61: 1164152877
B62: 2049 | C62: 1164152877 | D62: 0 | E62: 30192640.92 | F62: 1437924.524 | G62: 5750943.279 | H62: 23003773.12 | I62: ='Decom Expense Proj'!G59 -> 441265697 | J62: 745890953.3
B63: 2050 | C63: 745890953.3 | D63: 0 | E63: 18883113.15 | F63: 899308.2638 | G63: 3596760.977 | H63: 14387043.91 | I63: ='Decom Expense Proj'!G60 -> 311587334.7 | J63: 448690662.5
B64: 2051 | C64: 448690662.5 | D64: 0 | E64: 11392774.7 | F64: 542580.895 | G64: 2170038.761 | H64: 8680155.043 | I64: ='Decom Expense Proj'!G61 -> 185332906.3 | J64: 272037911.2
B65: 2052 | C65: 272037911.2 | D65: 0 | E65: 5093184.673 | F65: 242562.9201 | G65: 970124.3507 | H65: 3880497.403 | I65: ='Decom Expense Proj'!G62 -> 225751780.3 | J65: 50166628.28
B66: 2053 | C66: 50166628.28 | D66: 0 | E66: 792999.0765 | F66: 37766.58102 | G66: 151046.4991 | H66: 604185.9964 | I66: ='Decom Expense Proj'!G63 -> 50770814.28 | J66: -1.087784767e-06
B67: 2054 | C67: -1.087784767e-06 | D67: 0 | E67: -3.480911255e-08 | F67: -1.657783985e-09 | G67: -6.630265713e-09 | H67: -2.652106285e-08 | I67: ='Decom Expense Proj'!G64 -> 0 | J67: -1.11430583e-06
B68: 2055 | C68: -1.11430583e-06 | D68: 0 | E68: -3.565778656e-08 | F68: -1.698202085e-09 | G68: -6.791916895e-09 | H68: -2.716766758e-08 | I68: ='Decom Expense Proj'!G65 -> 0 | J68: -1.141473498e-06
B69: 2056 | C69: -1.141473498e-06 | D69: 0 | E69: -3.652715192e-08 | F69: -1.73960561e-09 | G69: -6.957509262e-09 | H69: -2.783003705e-08 | I69: ='Decom Expense Proj'!G66 -> 0 | J69: -1.169303535e-06
B70: 2057 | C70: -1.169303535e-06 | D70: 0 | E70: -3.741771311e-08 | F70: -1.782018587e-09 | G70: -7.127138904e-09 | H70: -2.850855562e-08 | I70: ='Decom Expense Proj'!G67 -> 0 | J70: -1.19781209e-06
B71: 2058 | C71: -1.19781209e-06 | D71: 0 | E71: -3.832998689e-08 | F71: -1.825465626e-09 | G71: -7.300904252e-09 | H71: -2.920361701e-08 | I71: ='Decom Expense Proj'!G68 -> 0 | J71: -1.227015707e-06

Sheet Fund Proj - ISFSI
B2: Ameren Missouri
B3: Callaway Energy Center Tax-Qualified Nuclear Decommissioning Trust Fund Projection
B5: ISFSI Decommissioning Fund Projection
B8: 2020-09-30 | C8: Fund Balance: | D8: 2414043.154 | E8: Equity Allocation: | G8: 0.65 | H8: Federal Income Tax Rate: | K8: 0.2
B9: 2051-12-31 | C9: EOY Fund Balance: | D9: =J66 -> 2.339947969e-08 | E9: Bond Allocation: | G9: 0.35 | H9: Missouri State Income Tax Rate: | K9: 0
E10: Switch Out of Equities at End-Of-Year: | G10: 2043 | H10: Percentage of Federal Taxes Deductible on MO Taxes: | K10: 0.5
B11: Current contribution: | D11: 435209 | H11: Composite Federal & State Income Tax Rate: | K11: =(K8+K9-(K8*K9*(1+K10)))/(1-(K8*K9*K10)) -> 0.2
B12: Revised contribution: | D12: 516379.4047 | E12: Nominal Pre-Tax & Expense Returns
E13: Bonds: | G13: 0.032 | H13: Management & Trust Fees: (BP) | K13: 15
B14: CPI Inflation: | D14: =((2.1+2.2)/2)/100 -> 0.0215 | E14: Equities: | G14: 0.085
B15: Decommissioning Inflation: | D15: ='Macro Data'!C5 -> 0.04191571816 | E15: Weighted Average - Bonds & Equities: | G15: =(G8*G14)+(G9*G13) -> 0.06645
B17: Effective Date of Revised Annual Contribution | E17: Real Pre-Tax & Expense Returns
C18: Year: | D18: 2021 | E18: Bonds: | G18: =G13-D14 -> 0.0105
C19: Quarter: | D19: 1 | E19: Equities: | G19: =G14-D14 -> 0.0635
E20: Bonds & Equities | G20: =G15-D14 -> 0.04495
B23: Fund Projections
D24: Annual
D25: Cash Inflow From | F25: Investment
D26: Contributions | E26: Pre | F26: Management | G26: Federal & State | H26: After | I26: Decommissioning
B27: Year Ending | C27: Beginning-of-Year | D27: To | E27: Tax & Fee | F27: & Trust | G27: Income | H27: Tax & Fee | I27: Expenses | J27: End-Of-Year
B28: December 31, 20xx | C28: Balance | D28: Fund | E28: Income | F28: Fees | G28: Taxes | H28: Income | I28: (Inflated $$) | J28: Balance
B30: TOTAL | D30: =SUM(D33:D72) -> 12507080.65 | E30: 28000685.24 | F30: 828899.8051 | G30: 5434357.088 | H30: 21737428.35 | I30: 36658552.15
B32: =B8 -> 2020-09-30 | J32: =D8 -> 2414043.154
B33: 2020 | C33: =J32 -> 2414043.154 | D33: =(1/4)*D11 -> 108802.25 | E33: =((C33+(D33/2)-(I33/2))*(3/12))*(IF(B33<=G$10,G$15,G$13)) -> 41007.03058 | F33: =(K$13/10000)*((C33+(D33/2)+(E33/2)-(I33/2))*(3/12)) -> 933.3554229 | G33: =K$11*(E33-F33) -> 8014.735032 | H33: =E33-F33-G33 -> 32058.94013 | I33: ='Decom Expense Proj'!L30 -> 0 | J33: =C33+D33+H33-I33 -> 2554904.344
B34: =B33+1 -> 2021 | C34: =J33 -> 2554904.344 | D34: =((1/4)*D11)+((3/4)*D12) -> 496086.8035 | E34: =((C34+(D34/2)-(I34/2))*(12/12))*(IF(B34<=G$10,G$15,G$13)) -> 186255.8777 | F34: =(K$13/10000)*((C34+(D34/2)+(E34/2)-(I34/2))*(12/12)) -> 4344.113527 | G34: =K$11*(E34-F34) -> 36382.35284 | H34: 145529.4113 | I34: ='Decom Expense Proj'!L31 -> 0 | J34: 3196520.559
B35: 2022 | C35: 3196520.559 | D35: =D$12 -> 516379.4047 | E35: 229565.4969 | F35: =(K$13/10000)*((C35+(D35/2)+(E35/2)-(I35/2))*(12/12)) -> 5354.239515 | G35: 44842.25147 | H35: 179369.0059 | I35: ='Decom Expense Proj'!L32 -> 0 | J35: 3892268.97
B36: 2023 | C36: 3892268.97 | D36: =D$12 -> 516379.4047 | E36: 275797.9787 | F36: 6432.536492 | G36: 53873.08845 | H36: 215492.3538 | I36: ='Decom Expense Proj'!L33 -> 0 | J36: 4624140.728
B37: 2024 | C37: 4624140.728 | D37: 516379.4047 | E37: 324430.8571 | F37: 7566.818788 | G37: 63372.80766 | H37: 253491.2307 | I37: ='Decom Expense Proj'!L34 -> 0 | J37: 5394011.363
B38: 2025 | C38: 5394011.363 | D38: 516379.4047 | E38: 375588.7608 | F38: 8759.993169 | G38: 73365.75353 | H38: 293463.0141 | I38: ='Decom Expense Proj'!L35 -> 0 | J38: 6203853.782
B39: 2026 | C39: 6203853.782 | D39: 516379.4047 | E39: 429402.7895 | F39: 10015.11732 | G39: 83877.53445 | H39: 335510.1378 | I39: ='Decom Expense Proj'!L36 -> 0 | J39: 7055743.325
B40: 2027 | C40: 7055743.325 | D40: 516379.4047 | E40: 486010.8496 | F40: 11335.40768 | G40: 94935.08839 | H40: 379740.3536 | I40: ='Decom Expense Proj'!L37 -> 0 | J40: 7951863.083
B41: 2028 | C41: 7951863.083 | D41: 516379.4047 | E41: 545558.0076 | F41: 12724.24768 | G41: 106566.752 | H41: 426267.0079 | I41: ='Decom Expense Proj'!L38 -> 0 | J41: 8894509.496
B42: 2029 | C42: 8894509.496 | D42: 516379.4047 | E42: 608196.8617 | F42: 14185.19644 | G42: 118802.3331 | H42: 475209.3322 | I42: ='Decom Expense Proj'!L39 -> 0 | J42: 9886098.232
B43: 2030 | C43: 9886098.232 | D43: 516379.4047 | E43: 674087.9333 | F43: 15721.99785 | G43: 131673.1871 | H43: 526692.7483 | I43: ='Decom Expense Proj'!L40 -> 0 | J43: 10929170.39
B44: 2031 | C44: 10929170.39 | D44: 516379.4047 | E44: 743400.0778 | F44: 17338.59019 | G44: 145212.2975 | H44: 580849.1901 | I44: ='Decom Expense Proj'!L41 -> 0 | J44: 12026398.98
B45: 2032 | C45: 12026398.98 | D45: 516379.4047 | E45: 816310.918 | F45: 19039.11621 | G45: 159454.3604 | H45: 637817.4414 | I45: ='Decom Expense Proj'!L42 -> 0 | J45: 13180595.83
B46: 2033 | C46: 13180595.83 | D46: 516379.4047 | E46: 893007.2984 | F46: 20827.93377 | G46: 174435.8729 | H46: 697743.4917 | I46: ='Decom Expense Proj'!L43 -> 0 | J46: 14394718.72
B47: 2034 | C47: 14394718.72 | D47: 516379.4047 | E47: 973685.7649 | F47: 22709.62696 | G47: 190195.2276 | H47: 760780.9103 | I47: ='Decom Expense Proj'!L44 -> 0 | J47: 15671879.04
B48: 2035 | C48: 15671879.04 | D48: 516379.4047 | E48: 1058553.068 | F48: 24689.01791 | G48: 206772.81 | H48: 827091.2399 | I48: ='Decom Expense Proj'!L45 -> 0 | J48: 17015349.68
B49: 2036 | C49: 17015349.68 | D49: 516379.4047 | E49: 1147826.692 | F49: 26771.1791 | G49: 224211.1026 | H49: 896844.4104 | I49: ='Decom Expense Proj'!L46 -> 0 | J49: 18428573.5
B50: 2037 | C50: 18428573.5 | D50: 516379.4047 | E50: 1241735.415 | F50: 28961.44636 | G50: 242554.7937 | H50: 970219.1746 | I50: ='Decom Expense Proj'!L47 -> 0 | J50: 19915172.08
B51: 2038 | C51: 19915172.08 | D51: 516379.4047 | E51: 1340519.89 | F51: 31265.43259 | G51: 261850.8915 | H51: 1047403.566 | I51: ='Decom Expense Proj'!L48 -> 0 | J51: 21478955.05
B52: 2039 | C52: 21478955.05 | D52: 516379.4047 | E52: 1444433.269 | F52: 33689.04208 | G52: 282148.8453 | H52: 1128595.381 | I52: ='Decom Expense Proj'!L49 -> 0 | J52: 23123929.83
B53: 2040 | C53: 23123929.83 | D53: 516379.4047 | E53: 1553741.843 | F53: 36238.48569 | G53: 303500.6715 | H53: 1214002.686 | I53: ='Decom Expense Proj'!L50 -> 0 | J53: 24854311.92
B54: 2041 | C54: 24854311.92 | D54: 516379.4047 | E54: 1668725.733 | F54: 38920.29674 | G54: 325961.0873 | H54: 1303844.349 | I54: ='Decom Expense Proj'!L51 -> 0 | J54: 26674535.68
B55: 2042 | C55: 26674535.68 | D55: 516379.4047 | E55: 1789679.602 | F55: 41741.34777 | G55: 349587.6508 | H55: 1398350.603 | I55: ='Decom Expense Proj'!L52 -> 0 | J55: 28589265.69
B56: 2043 | C56: 28589265.69 | D56: 516379.4047 | E56: 1916913.411 | F56: 44708.86814 | G56: 374440.9085 | H56: 1497763.634 | I56: ='Decom Expense Proj'!L53 -> 0 | J56: 30603408.72
B57: 2044 | C57: 30603408.72 | D57: =D56+((18/365)*D56) -> 541844.6904 | E57: 987978.5942 | F57: 47052.48055 | G57: 188185.2227 | H57: 752740.8909 | I57: ='Decom Expense Proj'!L54 -> 0 | J57: 31897994.31
B58: 2045 | C58: 31897994.31 | D58: 0 | E58: 1020735.818 | F58: 48612.54332 | G58: 194424.6549 | H58: 777698.6196 | I58: ='Decom Expense Proj'!L55 -> 0 | J58: 32675692.93
B59: 2046 | C59: 32675692.93 | D59: 0 | E59: 1045622.174 | F59: 49797.75602 | G59: 199164.8835 | H59: 796659.5341 | I59: ='Decom Expense Proj'!L56 -> 0 | J59: 33472352.46
B60: 2047 | C60: 33472352.46 | D60: 0 | E60: 1071115.279 | F60: 51011.86515 | G60: 204020.6827 | H60: 816082.7308 | I60: ='Decom Expense Proj'!L57 -> 0 | J60: 34288435.19
B61: 2048 | C61: 34288435.19 | D61: 0 | E61: 1097229.926 | F61: 52255.57523 | G61: 208994.8702 | H61: 835979.4807 | I61: ='Decom Expense Proj'!L58 -> 0 | J61: 35124414.67
B62: 2049 | C62: 35124414.67 | D62: 0 | E62: 1123981.269 | F62: 53529.60796 | G62: 214090.3323 | H62: 856361.3292 | I62: ='Decom Expense Proj'!L59 -> 0 | J62: 35980776
B63: 2050 | C63: 35980776 | D63: 0 | E63: 649488.8866 | F63: 30931.90823 | G63: 123711.3957 | H63: 494845.5827 | I63: ='Decom Expense Proj'!L60 -> 31368496.59 | J63: 5107124.997
B64: 2051 | C64: 5107124.997 | D64: 0 | E64: 148000.5541 | F64: 7048.526389 | G64: 28190.40554 | H64: 112761.6222 | I64: ='Decom Expense Proj'!L61 -> 964215.3633 | J64: 4255671.256
B65: 2052 | C65: 4255671.256 | D65: 0 | E65: 79684.00142 | F65: 3794.950568 | G65: 15177.81017 | H65: 60711.24068 | I65: ='Decom Expense Proj'!L62 -> 3531092.424 | J65: 785290.0731
B66: 2053 | C66: 785290.0731 | D66: 0 | E66: 12413.31786 | F66: 591.1842631 | G66: 2364.426719 | H66: 9457.706877 | I66: ='Decom Expense Proj'!L63 -> 794747.78 | J66: 2.339947969e-08
B67: 2054 | C67: 2.339947969e-08 | D67: 0 | E67: 7.4878335e-10 | F67: 3.566080704e-11 | G67: 1.426245086e-10 | H67: 5.704980344e-10 | I67: ='Decom Expense Proj'!L64 -> 0 | J67: 2.396997772e-08
B68: 2055 | C68: 2.396997772e-08 | D68: 0 | E68: 7.670392871e-10 | F68: 3.653024605e-11 | G68: 1.461018082e-10 | H68: 5.844072328e-10 | I68: ='Decom Expense Proj'!L65 -> 0 | J68: 2.455438495e-08
B69: 2056 | C69: 2.455438495e-08 | D69: 0 | E69: 7.857403185e-10 | F69: 3.742088267e-11 | G69: 1.496638872e-10 | H69: 5.986555487e-10 | I69: ='Decom Expense Proj'!L66 -> 0 | J69: 2.51530405e-08
B70: 2057 | C70: 2.51530405e-08 | D70: 0 | E70: 8.048972961e-10 | F70: 3.833323373e-11 | G70: 1.533128125e-10 | H70: 6.132512499e-10 | I70: ='Decom Expense Proj'!L67 -> 0 | J70: 2.576629175e-08
B71: 2058 | C71: =J70 -> 2.576629175e-08 | D71: 0 | E71: 8.245213361e-10 | F71: =(K$13/10000)*((C71+(D71/2)+(E71/2)-(I71/2))*(12/12)) -> 3.926782863e-11 | G71: =K$11*(E71-F71) -> 1.570507015e-10 | H71: =E71-F71-G71 -> 6.28202806e-10 | I71: ='Decom Expense Proj'!L68 -> 0 | J71: 2.639449456e-08

Sheet Fund Proj - Consolidated
B2: Ameren Missouri
B3: Callaway Energy Center Tax-Qualified Nuclear Decommissioning Trust Fund Projection
B5: Consolidated Plant & ISFSI Decommissioning Fund Projection
E8: Equity Allocation: | G8: 0.65 | H8: Federal Income Tax Rate: | K8: 0.2
E9: Bond Allocation: | G9: 0.35 | H9: Missouri State Income Tax Rate: | K9: 0
E10: Switch Out of Equities at End-Of-Year: | G10: 2043 | H10: Percentage of Federal Taxes Deductible on MO Taxes: | K10: 0.5
B11: Current Total Contribution: | D11: 6758605 | H11: Composite Federal & State Income Tax Rate: | K11: =(K8+K9-(K8*K9*(1+K10)))/(1-(K8*K9*K10)) -> 0.2
B12: Revised Total Contribution: | D12: 6758605 | E12: Nominal Pre-Tax & Expense Returns
E13: Bonds: | G13: 0.032 | H13: Management & Trust Fees: (BP) | K13: 15
B14: CPI Inflation: | D14: =((2.1+2.2)/2)/100 -> 0.0215 | E14: Equities: | G14: 0.085
B15: Decommissioning Inflation: | D15: ='Macro Data'!C5 -> 0.04191571816 | E15: Weighted Average - Bonds & Equities: | G15: =(G8*G14)+(G9*G13) -> 0.06645
B17: Effective Date of Revised Annual Contribution | E17: Real Pre-Tax & Expense Returns
C18: Year: | D18: 2021 | E18: Bonds: | G18: =G13-D14 -> 0.0105
C19: Quarter: | D19: 1 | E19: Equities: | G19: =G14-D14 -> 0.0635
E20: Bonds & Equities | G20: =G15-D14 -> 0.04495
B23: Fund Projections
D24: Annual
D25: Cash Inflow From | F25: Investment
D26: Contributions | E26: Pre | F26: Management | G26: Federal & State | H26: After | I26: Decommissioning
B27: Year Ending | C27: Beginning-of-Year | D27: To | E27: Tax & Fee | F27: & Trust | G27: Income | H27: Tax & Fee | I27: Expenses | J27: End-Of-Year
B28: December 31, 20xx | C28: Balance | D28: Fund | E28: Income | F28: Fees | G28: Taxes | H28: Income | I28: (Inflated $$) | J28: Balance
B30: TOTAL | D30: =SUM(D33:D72) -> 164229481.9 | E30: 2961272969 | F30: 79583818.47 | G30: 576337830.2 | H30: 2305351321 | I30: 3285997934
B32: 2020-09-30 | J32: ='Fund Proj - Plant'!J32+'Fund Proj - ISFSI'!J32 -> 816417131.1
B33: 2020 | C33: =J32 -> 816417131.1 | D33: ='Fund Proj - Plant'!D33+'Fund Proj - ISFSI'!D33 -> 1689651.25 | E33: ='Fund Proj - Plant'!E33+'Fund Proj - ISFSI'!E33 -> 13576764.26 | F33: ='Fund Proj - Plant'!F33+'Fund Proj - ISFSI'!F33 -> 309018.8771 | G33: ='Fund Proj - Plant'!G33+'Fund Proj - ISFSI'!G33 -> 2653549.076 | H33: ='Fund Proj - Plant'!H33+'Fund Proj - ISFSI'!H33 -> 10614196.3 | I33: ='Decom Expense Proj'!N30 -> 0 | J33: =C33+D33+H33-I33 -> 828720978.7
B34: =B33+1 -> 2021 | C34: =J33 -> 828720978.7 | D34: ='Fund Proj - Plant'!D34+'Fund Proj - ISFSI'!D34 -> 6758605.304 | E34: ='Fund Proj - Plant'!E34+'Fund Proj - ISFSI'!E34 -> 55293063.69 | F34: ='Fund Proj - Plant'!F34+'Fund Proj - ISFSI'!F34 -> 1289620.22 | G34: ='Fund Proj - Plant'!G34+'Fund Proj - ISFSI'!G34 -> 10800688.69 | H34: ='Fund Proj - Plant'!H34+'Fund Proj - ISFSI'!H34 -> 43202754.78 | I34: ='Decom Expense Proj'!N31 -> 0 | J34: 878682338.8
B35: 2022 | C35: 878682338.8 | D35: ='Fund Proj - Plant'!D35+'Fund Proj - ISFSI'!D35 -> 6758605.405 | E35: ='Fund Proj - Plant'!E35+'Fund Proj - ISFSI'!E35 -> 58612996.08 | F35: ='Fund Proj - Plant'!F35+'Fund Proj - ISFSI'!F35 -> 1367052.209 | G35: ='Fund Proj - Plant'!G35+'Fund Proj - ISFSI'!G35 -> 11449188.77 | H35: ='Fund Proj - Plant'!H35+'Fund Proj - ISFSI'!H35 -> 45796755.09 | I35: ='Decom Expense Proj'!N32 -> 0 | J35: 931237699.3
B36: 2023 | C36: 931237699.3 | D36: ='Fund Proj - Plant'!D36+'Fund Proj - ISFSI'!D36 -> 6758605.405 | E36: ='Fund Proj - Plant'!E36+'Fund Proj - ISFSI'!E36 -> 62105299.78 | F36: ='Fund Proj - Plant'!F36+'Fund Proj - ISFSI'!F36 -> 1448504.478 | G36: ='Fund Proj - Plant'!G36+'Fund Proj - ISFSI'!G36 -> 12131359.06 | H36: ='Fund Proj - Plant'!H36+'Fund Proj - ISFSI'!H36 -> 48525436.24 | I36: ='Decom Expense Proj'!N33 -> 0 | J36: 986521740.9
B37: 2024 | C37: 986521740.9 | D37: ='Fund Proj - Plant'!D37+'Fund Proj - ISFSI'!D37 -> 6758605.405 | E37: ='Fund Proj - Plant'!E37+'Fund Proj - ISFSI'!E37 -> 65778924.35 | F37: ='Fund Proj - Plant'!F37+'Fund Proj - ISFSI'!F37 -> 1534185.759 | G37: ='Fund Proj - Plant'!G37+'Fund Proj - ISFSI'!G37 -> 12848947.72 | H37: ='Fund Proj - Plant'!H37+'Fund Proj - ISFSI'!H37 -> 51395790.87 | I37: ='Decom Expense Proj'!N34 -> 0 | J37: 1044676137
B38: 2025 | C38: 1044676137 | D38: ='Fund Proj - Plant'!D38+'Fund Proj - ISFSI'!D38 -> 6758605.405 | E38: ='Fund Proj - Plant'!E38+'Fund Proj - ISFSI'!E38 -> 69643283.98 | F38: ='Fund Proj - Plant'!F38+'Fund Proj - ISFSI'!F38 -> 1624315.623 | G38: ='Fund Proj - Plant'!G38+'Fund Proj - ISFSI'!G38 -> 13603793.67 | H38: ='Fund Proj - Plant'!H38+'Fund Proj - ISFSI'!H38 -> 54415174.69 | I38: ='Decom Expense Proj'!N35 -> 0 | J38: 1105849917
B39: 2026 | C39: 1105849917 | D39: ='Fund Proj - Plant'!D39+'Fund Proj - ISFSI'!D39 -> 6758605.405 | E39: ='Fund Proj - Plant'!E39+'Fund Proj - ISFSI'!E39 -> 73708281.67 | F39: ='Fund Proj - Plant'!F39+'Fund Proj - ISFSI'!F39 -> 1719125.041 | G39: ='Fund Proj - Plant'!G39+'Fund Proj - ISFSI'!G39 -> 14397831.33 | H39: ='Fund Proj - Plant'!H39+'Fund Proj - ISFSI'!H39 -> 57591325.3 | I39: ='Decom Expense Proj'!N36 -> 0 | J39: 1170199848
B40: 2027 | C40: 1170199848 | D40: ='Fund Proj - Plant'!D40+'Fund Proj - ISFSI'!D40 -> 6758605.405 | E40: ='Fund Proj - Plant'!E40+'Fund Proj - ISFSI'!E40 -> 77984334.56 | F40: ='Fund Proj - Plant'!F40+'Fund Proj - ISFSI'!F40 -> 1818856.977 | G40: ='Fund Proj - Plant'!G40+'Fund Proj - ISFSI'!G40 -> 15233095.52 | H40: ='Fund Proj - Plant'!H40+'Fund Proj - ISFSI'!H40 -> 60932382.07 | I40: ='Decom Expense Proj'!N37 -> 0 | J40: 1237890835
B41: 2028 | C41: 1237890835 | D41: ='Fund Proj - Plant'!D41+'Fund Proj - ISFSI'!D41 -> 6758605.405 | E41: ='Fund Proj - Plant'!E41+'Fund Proj - ISFSI'!E41 -> 82482400.68 | F41: ='Fund Proj - Plant'!F41+'Fund Proj - ISFSI'!F41 -> 1923767.008 | G41: ='Fund Proj - Plant'!G41+'Fund Proj - ISFSI'!G41 -> 16111726.73 | H41: ='Fund Proj - Plant'!H41+'Fund Proj - ISFSI'!H41 -> 64446906.94 | I41: ='Decom Expense Proj'!N38 -> 0 | J41: 1309096348
B42: 2029 | C42: 1309096348 | D42: ='Fund Proj - Plant'!D42+'Fund Proj - ISFSI'!D42 -> 6758605.405 | E42: ='Fund Proj - Plant'!E42+'Fund Proj - ISFSI'!E42 -> 87214006.98 | F42: ='Fund Proj - Plant'!F42+'Fund Proj - ISFSI'!F42 -> 2034123.981 | G42: ='Fund Proj - Plant'!G42+'Fund Proj - ISFSI'!G42 -> 17035976.6 | H42: ='Fund Proj - Plant'!H42+'Fund Proj - ISFSI'!H42 -> 68143906.4 | I42: ='Decom Expense Proj'!N39 -> 0 | J42: 1383998860
B43: 2030 | C43: 1383998860 | D43: ='Fund Proj - Plant'!D43+'Fund Proj - ISFSI'!D43 -> 6758605.405 | E43: ='Fund Proj - Plant'!E43+'Fund Proj - ISFSI'!E43 -> 92191278.88 | F43: ='Fund Proj - Plant'!F43+'Fund Proj - ISFSI'!F43 -> 2150210.703 | G43: ='Fund Proj - Plant'!G43+'Fund Proj - ISFSI'!G43 -> 18008213.64 | H43: ='Fund Proj - Plant'!H43+'Fund Proj - ISFSI'!H43 -> 72032854.55 | I43: ='Decom Expense Proj'!N40 -> 0 | J43: 1462790320
B44: 2031 | C44: 1462790320 | D44: ='Fund Proj - Plant'!D44+'Fund Proj - ISFSI'!D44 -> 6758605.405 | E44: ='Fund Proj - Plant'!E44+'Fund Proj - ISFSI'!E44 -> 97426971.4 | F44: ='Fund Proj - Plant'!F44+'Fund Proj - ISFSI'!F44 -> 2272324.662 | G44: ='Fund Proj - Plant'!G44+'Fund Proj - ISFSI'!G44 -> 19030929.35 | H44: ='Fund Proj - Plant'!H44+'Fund Proj - ISFSI'!H44 -> 76123717.39 | I44: ='Decom Expense Proj'!N41 -> 0 | J44: 1545672642
B45: 2032 | C45: 1545672642 | D45: ='Fund Proj - Plant'!D45+'Fund Proj - ISFSI'!D45 -> 6758605.405 | E45: ='Fund Proj - Plant'!E45+'Fund Proj - ISFSI'!E45 -> 102934501.7 | F45: ='Fund Proj - Plant'!F45+'Fund Proj - ISFSI'!F45 -> 2400778.794 | G45: ='Fund Proj - Plant'!G45+'Fund Proj - ISFSI'!G45 -> 20106744.59 | H45: ='Fund Proj - Plant'!H45+'Fund Proj - ISFSI'!H45 -> 80426978.36 | I45: ='Decom Expense Proj'!N42 -> 0 | J45: 1632858226
B46: 2033 | C46: 1632858226 | D46: ='Fund Proj - Plant'!D46+'Fund Proj - ISFSI'!D46 -> 6758605.405 | E46: ='Fund Proj - Plant'!E46+'Fund Proj - ISFSI'!E46 -> 108727983.8 | F46: ='Fund Proj - Plant'!F46+'Fund Proj - ISFSI'!F46 -> 2535902.281 | G46: ='Fund Proj - Plant'!G46+'Fund Proj - ISFSI'!G46 -> 21238416.3 | H46: ='Fund Proj - Plant'!H46+'Fund Proj - ISFSI'!H46 -> 84953665.21 | I46: ='Decom Expense Proj'!N43 -> 0 | J46: 1724570497
B47: 2034 | C47: 1724570497 | D47: ='Fund Proj - Plant'!D47+'Fund Proj - ISFSI'!D47 -> 6758605.405 | E47: ='Fund Proj - Plant'!E47+'Fund Proj - ISFSI'!E47 -> 114822264.2 | F47: ='Fund Proj - Plant'!F47+'Fund Proj - ISFSI'!F47 -> 2678041.397 | G47: ='Fund Proj - Plant'!G47+'Fund Proj - ISFSI'!G47 -> 22428844.55 | H47: ='Fund Proj - Plant'!H47+'Fund Proj - ISFSI'!H47 -> 89715378.22 | I47: ='Decom Expense Proj'!N44 -> 0 | J47: 1821044480
B48: 2035 | C48: 1821044480 | D48: ='Fund Proj - Plant'!D48+'Fund Proj - ISFSI'!D48 -> 6758605.405 | E48: ='Fund Proj - Plant'!E48+'Fund Proj - ISFSI'!E48 -> 121232960.4 | F48: ='Fund Proj - Plant'!F48+'Fund Proj - ISFSI'!F48 -> 2827560.395 | G48: ='Fund Proj - Plant'!G48+'Fund Proj - ISFSI'!G48 -> 23681080 | H48: ='Fund Proj - Plant'!H48+'Fund Proj - ISFSI'!H48 -> 94724319.99 | I48: ='Decom Expense Proj'!N45 -> 0 | J48: 1922527406
B49: 2036 | C49: 1922527406 | D49: ='Fund Proj - Plant'!D49+'Fund Proj - ISFSI'!D49 -> 6758605.405 | E49: ='Fund Proj - Plant'!E49+'Fund Proj - ISFSI'!E49 -> 127976500.8 | F49: ='Fund Proj - Plant'!F49+'Fund Proj - ISFSI'!F49 -> 2984842.438 | G49: ='Fund Proj - Plant'!G49+'Fund Proj - ISFSI'!G49 -> 24998331.67 | H49: ='Fund Proj - Plant'!H49+'Fund Proj - ISFSI'!H49 -> 99993326.67 | I49: ='Decom Expense Proj'!N46 -> 0 | J49: 2029279338
B50: 2037 | C50: 2029279338 | D50: ='Fund Proj - Plant'!D50+'Fund Proj - ISFSI'!D50 -> 6758605.405 | E50: ='Fund Proj - Plant'!E50+'Fund Proj - ISFSI'!E50 -> 135070166.7 | F50: ='Fund Proj - Plant'!F50+'Fund Proj - ISFSI'!F50 -> 3150290.586 | G50: ='Fund Proj - Plant'!G50+'Fund Proj - ISFSI'!G50 -> 26383975.22 | H50: ='Fund Proj - Plant'!H50+'Fund Proj - ISFSI'!H50 -> 105535900.9 | I50: ='Decom Expense Proj'!N47 -> 0 | J50: 2141573844
B51: 2038 | C51: 2141573844 | D51: ='Fund Proj - Plant'!D51+'Fund Proj - ISFSI'!D51 -> 6758605.405 | E51: ='Fund Proj - Plant'!E51+'Fund Proj - ISFSI'!E51 -> 142532136.6 | F51: ='Fund Proj - Plant'!F51+'Fund Proj - ISFSI'!F51 -> 3324328.823 | G51: ='Fund Proj - Plant'!G51+'Fund Proj - ISFSI'!G51 -> 27841561.56 | H51: ='Fund Proj - Plant'!H51+'Fund Proj - ISFSI'!H51 -> 111366246.2 | I51: ='Decom Expense Proj'!N48 -> 0 | J51: 2259698696
B52: 2039 | C52: 2259698696 | D52: ='Fund Proj - Plant'!D52+'Fund Proj - ISFSI'!D52 -> 6758605.405 | E52: ='Fund Proj - Plant'!E52+'Fund Proj - ISFSI'!E52 -> 150381533 | F52: ='Fund Proj - Plant'!F52+'Fund Proj - ISFSI'!F52 -> 3507403.147 | G52: ='Fund Proj - Plant'!G52+'Fund Proj - ISFSI'!G52 -> 29374825.97 | H52: ='Fund Proj - Plant'!H52+'Fund Proj - ISFSI'!H52 -> 117499303.9 | I52: ='Decom Expense Proj'!N49 -> 0 | J52: 2383956605
B53: 2040 | C53: 2383956605 | D53: ='Fund Proj - Plant'!D53+'Fund Proj - ISFSI'!D53 -> 6758605.405 | E53: ='Fund Proj - Plant'!E53+'Fund Proj - ISFSI'!E53 -> 158638471.1 | F53: ='Fund Proj - Plant'!F53+'Fund Proj - ISFSI'!F53 -> 3699982.715 | G53: ='Fund Proj - Plant'!G53+'Fund Proj - ISFSI'!G53 -> 30987697.67 | H53: ='Fund Proj - Plant'!H53+'Fund Proj - ISFSI'!H53 -> 123950790.7 | I53: ='Decom Expense Proj'!N50 -> 0 | J53: 2514666001
B54: 2041 | C54: 2514666001 | D54: ='Fund Proj - Plant'!D54+'Fund Proj - ISFSI'!D54 -> 6758605.405 | E54: ='Fund Proj - Plant'!E54+'Fund Proj - ISFSI'!E54 -> 167324110.4 | F54: ='Fund Proj - Plant'!F54+'Fund Proj - ISFSI'!F54 -> 3902561.038 | G54: ='Fund Proj - Plant'!G54+'Fund Proj - ISFSI'!G54 -> 32684309.88 | H54: ='Fund Proj - Plant'!H54+'Fund Proj - ISFSI'!H54 -> 130737239.5 | I54: ='Decom Expense Proj'!N51 -> 0 | J54: 2652161846
B55: 2042 | C55: 2652161846 | D55: ='Fund Proj - Plant'!D55+'Fund Proj - ISFSI'!D55 -> 6758605.405 | E55: ='Fund Proj - Plant'!E55+'Fund Proj - ISFSI'!E55 -> 176460709.3 | F55: ='Fund Proj - Plant'!F55+'Fund Proj - ISFSI'!F55 -> 4115657.255 | G55: ='Fund Proj - Plant'!G55+'Fund Proj - ISFSI'!G55 -> 34469010.42 | H55: ='Fund Proj - Plant'!H55+'Fund Proj - ISFSI'!H55 -> 137876041.7 | I55: ='Decom Expense Proj'!N52 -> 0 | J55: 2796796493
B56: 2043 | C56: 2796796493 | D56: ='Fund Proj - Plant'!D56+'Fund Proj - ISFSI'!D56 -> 6758605.405 | E56: ='Fund Proj - Plant'!E56+'Fund Proj - ISFSI'!E56 -> 186071681.6 | F56: ='Fund Proj - Plant'!F56+'Fund Proj - ISFSI'!F56 -> 4339817.455 | G56: ='Fund Proj - Plant'!G56+'Fund Proj - ISFSI'!G56 -> 36346372.83 | H56: ='Fund Proj - Plant'!H56+'Fund Proj - ISFSI'!H56 -> 145385491.3 | I56: ='Decom Expense Proj'!N53 -> 0 | J56: 2948940590
B57: 2044 | C57: 2948940590 | D57: ='Fund Proj - Plant'!D57+'Fund Proj - ISFSI'!D57 -> 7091906.493 | E57: ='Fund Proj - Plant'!E57+'Fund Proj - ISFSI'!E57 -> 93540655.91 | F57: ='Fund Proj - Plant'!F57+'Fund Proj - ISFSI'!F57 -> 4454873.738 | G57: ='Fund Proj - Plant'!G57+'Fund Proj - ISFSI'!G57 -> 17817156.43 | H57: ='Fund Proj - Plant'!H57+'Fund Proj - ISFSI'!H57 -> 71268625.74 | I57: ='Decom Expense Proj'!N54 -> 58682091.64 | J57: 2968619030
B58: 2045 | C58: 2968619030 | D58: ='Fund Proj - Plant'!D58+'Fund Proj - ISFSI'!D58 -> 0 | E58: ='Fund Proj - Plant'!E58+'Fund Proj - ISFSI'!E58 -> 89574644.37 | F58: ='Fund Proj - Plant'!F58+'Fund Proj - ISFSI'!F58 -> 4265992.438 | G58: ='Fund Proj - Plant'!G58+'Fund Proj - ISFSI'!G58 -> 17061730.39 | H58: ='Fund Proj - Plant'!H58+'Fund Proj - ISFSI'!H58 -> 68246921.55 | I58: ='Decom Expense Proj'!N55 -> 338822787.6 | J58: 2698043164
B59: 2046 | C59: 2698043164 | D59: ='Fund Proj - Plant'!D59+'Fund Proj - ISFSI'!D59 -> 0 | E59: ='Fund Proj - Plant'!E59+'Fund Proj - ISFSI'!E59 -> 77182812.13 | F59: ='Fund Proj - Plant'!F59+'Fund Proj - ISFSI'!F59 -> 3675831.428 | G59: ='Fund Proj - Plant'!G59+'Fund Proj - ISFSI'!G59 -> 14701396.14 | H59: ='Fund Proj - Plant'!H59+'Fund Proj - ISFSI'!H59 -> 58805584.56 | I59: ='Decom Expense Proj'!N56 -> 572160570.7 | J59: 2184688178
B60: 2047 | C60: 2184688178 | D60: ='Fund Proj - Plant'!D60+'Fund Proj - ISFSI'!D60 -> 0 | E60: ='Fund Proj - Plant'!E60+'Fund Proj - ISFSI'!E60 -> 59996319.36 | F60: ='Fund Proj - Plant'!F60+'Fund Proj - ISFSI'!F60 -> 2857324.709 | G60: ='Fund Proj - Plant'!G60+'Fund Proj - ISFSI'!G60 -> 11427798.93 | H60: ='Fund Proj - Plant'!H60+'Fund Proj - ISFSI'!H60 -> 45711195.72 | I60: ='Decom Expense Proj'!N57 -> 619606396.8 | J60: 1610792977
B61: 2048 | C61: 1610792977 | D61: ='Fund Proj - Plant'!D61+'Fund Proj - ISFSI'!D61 -> 0 | E61: ='Fund Proj - Plant'!E61+'Fund Proj - ISFSI'!E61 -> 44419631.23 | F61: ='Fund Proj - Plant'!F61+'Fund Proj - ISFSI'!F61 -> 2115484.937 | G61: ='Fund Proj - Plant'!G61+'Fund Proj - ISFSI'!G61 -> 8460829.259 | H61: ='Fund Proj - Plant'!H61+'Fund Proj - ISFSI'!H61 -> 33843317.04 | I61: ='Decom Expense Proj'!N58 -> 445359002.3 | J61: 1199277292
B62: 2049 | C62: 1199277292 | D62: ='Fund Proj - Plant'!D62+'Fund Proj - ISFSI'!D62 -> 0 | E62: ='Fund Proj - Plant'!E62+'Fund Proj - ISFSI'!E62 -> 31316622.19 | F62: ='Fund Proj - Plant'!F62+'Fund Proj - ISFSI'!F62 -> 1491454.132 | G62: ='Fund Proj - Plant'!G62+'Fund Proj - ISFSI'!G62 -> 5965033.611 | H62: ='Fund Proj - Plant'!H62+'Fund Proj - ISFSI'!H62 -> 23860134.45 | I62: ='Decom Expense Proj'!N59 -> 441265697 | J62: 781871729.3
B63: 2050 | C63: 781871729.3 | D63: ='Fund Proj - Plant'!D63+'Fund Proj - ISFSI'!D63 -> 0 | E63: ='Fund Proj - Plant'!E63+'Fund Proj - ISFSI'!E63 -> 19532602.04 | F63: ='Fund Proj - Plant'!F63+'Fund Proj - ISFSI'!F63 -> 930240.172 | G63: ='Fund Proj - Plant'!G63+'Fund Proj - ISFSI'!G63 -> 3720472.373 | H63: ='Fund Proj - Plant'!H63+'Fund Proj - ISFSI'!H63 -> 14881889.49 | I63: ='Decom Expense Proj'!N60 -> 342955831.3 | J63: 453797787.5
B64: 2051 | C64: 453797787.5 | D64: ='Fund Proj - Plant'!D64+'Fund Proj - ISFSI'!D64 -> 0 | E64: ='Fund Proj - Plant'!E64+'Fund Proj - ISFSI'!E64 -> 11540775.25 | F64: ='Fund Proj - Plant'!F64+'Fund Proj - ISFSI'!F64 -> 549629.4214 | G64: ='Fund Proj - Plant'!G64+'Fund Proj - ISFSI'!G64 -> 2198229.166 | H64: ='Fund Proj - Plant'!H64+'Fund Proj - ISFSI'!H64 -> 8792916.665 | I64: ='Decom Expense Proj'!N61 -> 186297121.7 | J64: 276293582.5
B65: 2052 | C65: 276293582.5 | D65: ='Fund Proj - Plant'!D65+'Fund Proj - ISFSI'!D65 -> 0 | E65: ='Fund Proj - Plant'!E65+'Fund Proj - ISFSI'!E65 -> 5172868.675 | F65: ='Fund Proj - Plant'!F65+'Fund Proj - ISFSI'!F65 -> 246357.8706 | G65: ='Fund Proj - Plant'!G65+'Fund Proj - ISFSI'!G65 -> 985302.1608 | H65: ='Fund Proj - Plant'!H65+'Fund Proj - ISFSI'!H65 -> 3941208.643 | I65: ='Decom Expense Proj'!N62 -> 229282872.8 | J65: 50951918.35
B66: 2053 | C66: 50951918.35 | D66: ='Fund Proj - Plant'!D66+'Fund Proj - ISFSI'!D66 -> 0 | E66: ='Fund Proj - Plant'!E66+'Fund Proj - ISFSI'!E66 -> 805412.3944 | F66: ='Fund Proj - Plant'!F66+'Fund Proj - ISFSI'!F66 -> 38357.76528 | G66: ='Fund Proj - Plant'!G66+'Fund Proj - ISFSI'!G66 -> 153410.9258 | H66: ='Fund Proj - Plant'!H66+'Fund Proj - ISFSI'!H66 -> 613643.7033 | I66: ='Decom Expense Proj'!N63 -> 51565562.06 | J66: -2.071261406e-06
B67: 2054 | C67: -2.071261406e-06 | D67: ='Fund Proj - Plant'!D67+'Fund Proj - ISFSI'!D67 -> 0 | E67: ='Fund Proj - Plant'!E67+'Fund Proj - ISFSI'!E67 -> -3.40603292e-08 | F67: ='Fund Proj - Plant'!F67+'Fund Proj - ISFSI'!F67 -> -1.622123178e-09 | G67: ='Fund Proj - Plant'!G67+'Fund Proj - ISFSI'!G67 -> -6.487641204e-09 | H67: ='Fund Proj - Plant'!H67+'Fund Proj - ISFSI'!H67 -> -2.595056482e-08 | I67: ='Decom Expense Proj'!N64 -> 0 | J67: -2.097211971e-06
B68: 2055 | C68: -2.097211971e-06 | D68: ='Fund Proj - Plant'!D68+'Fund Proj - ISFSI'!D68 -> 0 | E68: ='Fund Proj - Plant'!E68+'Fund Proj - ISFSI'!E68 -> -3.489074727e-08 | F68: ='Fund Proj - Plant'!F68+'Fund Proj - ISFSI'!F68 -> -1.661671839e-09 | G68: ='Fund Proj - Plant'!G68+'Fund Proj - ISFSI'!G68 -> -6.645815087e-09 | H68: ='Fund Proj - Plant'!H68+'Fund Proj - ISFSI'!H68 -> -2.658326035e-08 | I68: ='Decom Expense Proj'!N65 -> 0 | J68: -2.123795231e-06
B69: 2056 | C69: -2.123795231e-06 | D69: ='Fund Proj - Plant'!D69+'Fund Proj - ISFSI'!D69 -> 0 | E69: ='Fund Proj - Plant'!E69+'Fund Proj - ISFSI'!E69 -> -3.57414116e-08 | F69: ='Fund Proj - Plant'!F69+'Fund Proj - ISFSI'!F69 -> -1.702184728e-09 | G69: ='Fund Proj - Plant'!G69+'Fund Proj - ISFSI'!G69 -> -6.807845375e-09 | H69: ='Fund Proj - Plant'!H69+'Fund Proj - ISFSI'!H69 -> -2.72313815e-08 | I69: ='Decom Expense Proj'!N66 -> 0 | J69: -2.151026613e-06
B70: 2057 | C70: -2.151026613e-06 | D70: ='Fund Proj - Plant'!D70+'Fund Proj - ISFSI'!D70 -> 0 | E70: ='Fund Proj - Plant'!E70+'Fund Proj - ISFSI'!E70 -> -3.661281581e-08 | F70: ='Fund Proj - Plant'!F70+'Fund Proj - ISFSI'!F70 -> -1.743685353e-09 | G70: ='Fund Proj - Plant'!G70+'Fund Proj - ISFSI'!G70 -> -6.973826092e-09 | H70: ='Fund Proj - Plant'!H70+'Fund Proj - ISFSI'!H70 -> -2.789530437e-08 | I70: ='Decom Expense Proj'!N67 -> 0 | J70: -2.178921917e-06
B71: 2058 | C71: -2.178921917e-06 | D71: ='Fund Proj - Plant'!D71+'Fund Proj - ISFSI'!D71 -> 0 | E71: ='Fund Proj - Plant'!E71+'Fund Proj - ISFSI'!E71 -> -3.750546555e-08 | F71: ='Fund Proj - Plant'!F71+'Fund Proj - ISFSI'!F71 -> -1.786197797e-09 | G71: ='Fund Proj - Plant'!G71+'Fund Proj - ISFSI'!G71 -> -7.143853551e-09 | H71: ='Fund Proj - Plant'!H71+'Fund Proj - ISFSI'!H71 -> -2.85754142e-08 | I71: ='Decom Expense Proj'!N68 -> 0 | J71: -2.207497331e-06

Sheet Overall Return - Plant
B2: Ameren Missouri
B3: Callaway Energy Center Tax-Qualified Nuclear Decommissioning Trust Fund Projection
B5: Overall Annualized Return Derivation - Plant
B8: Amount Remaining in Fund at Completion of Decommissioning: | F8: =J54 -> 1.363456249e-06
B10: Required Annual Earnings Over Life of Fund: | F10: 0.06086551852
B13: (1) | C13: (2) | D13: (3) | E13: (4) | F13: (5) | G13: (6) | H13: (7) | I13: (8) | J13: (9)
D15: Contributions | E15: Pre | F15: Management | G15: Federal & State | H15: After | I15: Decommissioning
B16: Year | C16: Beginning-of-Year | D16: To | E16: Tax & Fee | F16: And Trust | G16: Income | H16: Tax & Fee | I16: Expenses | J16: End-of-Year
B17: Ending | C17: Balance | D17: Fund | E17: Income | F17: Fees | G17: Taxes | H17: Income | I17: (Inflated $$) | J17: Balance
B20: ='Fund Proj - Plant'!B32 -> 2020-09-30 | C20: N/A | D20: N/A | E20: N/A | F20: N/A | G20: N/A | H20: N/A | I20: N/A | J20: ='Fund Proj - Plant'!J32 -> 814003088
B21: ='Fund Proj - Plant'!B33 -> 2020 | C21: =J20 -> 814003088 | D21: ='Fund Proj - Plant'!D33 -> 1580849 | E21: =((C21+(D21/2)-(I21/2))*F$10)*(3/12) -> 12398207.41 | F21: =('Fund Proj - Plant'!K$13/10000)*(C21+(D21/2)+(E21/2)-(I21/2))*(3/12) -> 307872.2311 | G21: ='Fund Proj - Plant'!K$11*(E21-F21) -> 2418067.035 | H21: =E21-F21-G21 -> 9672268.14 | I21: ='Fund Proj - Plant'!I33 -> 0 | J21: =C21+D21+H21-I21 -> 825256205.1
B22: ='Fund Proj - Plant'!B34 -> 2021 | C22: =J21 -> 825256205.1 | D22: ='Fund Proj - Plant'!D34 -> 6262518.5 | E22: =((C22+(D22/2)-(I22/2))*F$10) -> 50420232.56 | F22: =('Fund Proj - Plant'!K$13/10000)*(C22+(D22/2)+(E22/2)-(I22/2)) -> 1280396.371 | G22: ='Fund Proj - Plant'!K$11*(E22-F22) -> 9827967.237 | H22: 39311868.95 | I22: ='Fund Proj - Plant'!I34 -> 0 | J22: 870830592.6
B23: ='Fund Proj - Plant'!B35 -> 2022 | C23: 870830592.6 | D23: ='Fund Proj - Plant'!D35 -> 6242226 | E23: 53193523.72 | F23: =('Fund Proj - Plant'!K$13/10000)*(C23+(D23/2)+(E23/2)-(I23/2)) -> 1350822.701 | G23: ='Fund Proj - Plant'!K$11*(E23-F23) -> 10368540.2 | H23: 41474160.82 | I23: ='Fund Proj - Plant'!I35 -> 0 | J23: 918546979.4
B24: ='Fund Proj - Plant'!B36 -> 2023 | C24: 918546979.4 | D24: ='Fund Proj - Plant'!D36 -> 6242226 | E24: 56097806.35 | F24: =('Fund Proj - Plant'!K$13/10000)*(C24+(D24/2)+(E24/2)-(I24/2)) -> 1424575.493 | G24: ='Fund Proj - Plant'!K$11*(E24-F24) -> 10934646.17 | H24: 43738584.68 | I24: ='Fund Proj - Plant'!I36 -> 0 | J24: 968527790.1
B25: ='Fund Proj - Plant'!B37 -> 2024 | C25: 968527790.1 | D25: ='Fund Proj - Plant'!D37 -> 6242226 | E25: 59139914.31 | F25: =('Fund Proj - Plant'!K$13/10000)*(C25+(D25/2)+(E25/2)-(I25/2)) -> 1501828.29 | G25: ='Fund Proj - Plant'!K$11*(E25-F25) -> 11527617.2 | H25: 46110468.81 | I25: ='Fund Proj - Plant'!I37 -> 0 | J25: 1020880485
B26: ='Fund Proj - Plant'!B38 -> 2025 | C26: 1020880485 | D26: ='Fund Proj - Plant'!D38 -> 6242226 | E26: 62326388.22 | F26: =('Fund Proj - Plant'!K$13/10000)*(C26+(D26/2)+(E26/2)-(I26/2)) -> 1582747.188 | G26: ='Fund Proj - Plant'!K$11*(E26-F26) -> 12148728.21 | H26: 48594912.83 | I26: ='Fund Proj - Plant'!I38 -> 0 | J26: 1075717624
B27: ='Fund Proj - Plant'!B39 -> 2026 | C27: 1075717624 | D27: ='Fund Proj - Plant'!D39 -> 6242226 | E27: 65664079.11 | F27: =('Fund Proj - Plant'!K$13/10000)*(C27+(D27/2)+(E27/2)-(I27/2)) -> 1667506.164 | G27: ='Fund Proj - Plant'!K$11*(E27-F27) -> 12799314.59 | H27: 51197258.36 | I27: ='Fund Proj - Plant'!I39 -> 0 | J27: 1133157108
B28: ='Fund Proj - Plant'!B40 -> 2027 | C28: 1133157108 | D28: ='Fund Proj - Plant'!D40 -> 6242226 | E28: 69160163.11 | F28: =('Fund Proj - Plant'!K$13/10000)*(C28+(D28/2)+(E28/2)-(I28/2)) -> 1756287.454 | G28: ='Fund Proj - Plant'!K$11*(E28-F28) -> 13480775.13 | H28: 53923100.53 | I28: ='Fund Proj - Plant'!I40 -> 0 | J28: 1193322435
B29: ='Fund Proj - Plant'!B41 -> 2028 | C29: 1193322435 | D29: ='Fund Proj - Plant'!D41 -> 6242226 | E29: 72822156.91 | F29: =('Fund Proj - Plant'!K$13/10000)*(C29+(D29/2)+(E29/2)-(I29/2)) -> 1849281.939 | G29: ='Fund Proj - Plant'!K$11*(E29-F29) -> 14194574.99 | H29: 56778299.98 | I29: ='Fund Proj - Plant'!I41 -> 0 | J29: 1256342961
B30: ='Fund Proj - Plant'!B42 -> 2029 | C30: 1256342961 | D30: ='Fund Proj - Plant'!D42 -> 6242226 | E30: 76657933.9 | F30: =('Fund Proj - Plant'!K$13/10000)*(C30+(D30/2)+(E30/2)-(I30/2)) -> 1946689.561 | G30: ='Fund Proj - Plant'!K$11*(E30-F30) -> 14942248.87 | H30: 59768995.47 | I30: ='Fund Proj - Plant'!I42 -> 0 | J30: 1322354182
B31: ='Fund Proj - Plant'!B43 -> 2030 | C31: 1322354182 | D31: ='Fund Proj - Plant'!D43 -> 6242226 | E31: 80675741.12 | F31: =('Fund Proj - Plant'!K$13/10000)*(C31+(D31/2)+(E31/2)-(I31/2)) -> 2048719.748 | G31: ='Fund Proj - Plant'!K$11*(E31-F31) -> 15725404.27 | H31: 62901617.1 | I31: ='Fund Proj - Plant'!I43 -> 0 | J31: 1391498025
B32: ='Fund Proj - Plant'!B44 -> 2031 | C32: 1391498025 | D32: ='Fund Proj - Plant'!D44 -> 6242226 | E32: 84884216.99 | F32: =('Fund Proj - Plant'!K$13/10000)*(C32+(D32/2)+(E32/2)-(I32/2)) -> 2155591.87 | G32: ='Fund Proj - Plant'!K$11*(E32-F32) -> 16545725.02 | H32: 66182900.09 | I32: ='Fund Proj - Plant'!I44 -> 0 | J32: 1463923151
B33: ='Fund Proj - Plant'!B45 -> 2032 | C33: 1463923151 | D33: ='Fund Proj - Plant'!D45 -> 6242226 | E33: 89292409.84 | F33: =('Fund Proj - Plant'!K$13/10000)*(C33+(D33/2)+(E33/2)-(I33/2)) -> 2267535.704 | G33: ='Fund Proj - Plant'!K$11*(E33-F33) -> 17404974.83 | H33: 69619899.31 | I33: ='Fund Proj - Plant'!I45 -> 0 | J33: 1539785277
B34: ='Fund Proj - Plant'!B46 -> 2033 | C34: 1539785277 | D34: ='Fund Proj - Plant'!D46 -> 6242226 | E34: 93909797.43 | F34: =('Fund Proj - Plant'!K$13/10000)*(C34+(D34/2)+(E34/2)-(I34/2)) -> 2384791.932 | G34: ='Fund Proj - Plant'!K$11*(E34-F34) -> 18305001.1 | H34: 73220004.4 | I34: ='Fund Proj - Plant'!I46 -> 0 | J34: 1619247507
B35: ='Fund Proj - Plant'!B47 -> 2034 | C35: 1619247507 | D35: ='Fund Proj - Plant'!D47 -> 6242226 | E35: 98746307.29 | F35: =('Fund Proj - Plant'!K$13/10000)*(C35+(D35/2)+(E35/2)-(I35/2)) -> 2507612.66 | G35: ='Fund Proj - Plant'!K$11*(E35-F35) -> 19247738.93 | H35: 76990955.7 | I35: ='Fund Proj - Plant'!I47 -> 0 | J35: 1702480689
B36: ='Fund Proj - Plant'!B48 -> 2035 | C36: 1702480689 | D36: ='Fund Proj - Plant'!D48 -> 6242226 | E36: 103812338.1 | F36: =('Fund Proj - Plant'!K$13/10000)*(C36+(D36/2)+(E36/2)-(I36/2)) -> 2636261.956 | G36: ='Fund Proj - Plant'!K$11*(E36-F36) -> 20235215.22 | H36: 80940860.88 | I36: ='Fund Proj - Plant'!I48 -> 0 | J36: 1789663776
B37: ='Fund Proj - Plant'!B49 -> 2036 | C37: 1789663776 | D37: ='Fund Proj - Plant'!D49 -> 6242226 | E37: 109118781.8 | F37: =('Fund Proj - Plant'!K$13/10000)*(C37+(D37/2)+(E37/2)-(I37/2)) -> 2771016.419 | G37: ='Fund Proj - Plant'!K$11*(E37-F37) -> 21269553.08 | H37: 85078212.34 | I37: ='Fund Proj - Plant'!I49 -> 0 | J37: 1880984214
B38: ='Fund Proj - Plant'!B50 -> 2037 | C38: 1880984214 | D38: ='Fund Proj - Plant'!D50 -> 6242226 | E38: 114677047.7 | F38: =('Fund Proj - Plant'!K$13/10000)*(C38+(D38/2)+(E38/2)-(I38/2)) -> 2912165.776 | G38: ='Fund Proj - Plant'!K$11*(E38-F38) -> 22352976.38 | H38: 89411905.52 | I38: ='Fund Proj - Plant'!I50 -> 0 | J38: 1976638345
B39: ='Fund Proj - Plant'!B51 -> 2038 | C39: 1976638345 | D39: ='Fund Proj - Plant'!D51 -> 6242226 | E39: 120499086 | F39: =('Fund Proj - Plant'!K$13/10000)*(C39+(D39/2)+(E39/2)-(I39/2)) -> 3060013.502 | G39: ='Fund Proj - Plant'!K$11*(E39-F39) -> 23487814.5 | H39: 93951257.99 | I39: ='Fund Proj - Plant'!I51 -> 0 | J39: 2076831829
B40: ='Fund Proj - Plant'!B52 -> 2039 | C40: 2076831829 | D40: ='Fund Proj - Plant'!D52 -> 6242226 | E40: 126597414.3 | F40: =('Fund Proj - Plant'!K$13/10000)*(C40+(D40/2)+(E40/2)-(I40/2)) -> 3214877.474 | G40: ='Fund Proj - Plant'!K$11*(E40-F40) -> 24676507.37 | H40: 98706029.49 | I40: ='Fund Proj - Plant'!I52 -> 0 | J40: 2181780085
B41: ='Fund Proj - Plant'!B53 -> 2040 | C41: 2181780085 | D41: ='Fund Proj - Plant'!D53 -> 6242226 | E41: 132985144.3 | F41: =('Fund Proj - Plant'!K$13/10000)*(C41+(D41/2)+(E41/2)-(I41/2)) -> 3377090.655 | G41: ='Fund Proj - Plant'!K$11*(E41-F41) -> 25921610.74 | H41: 103686442.9 | I41: ='Fund Proj - Plant'!I53 -> 0 | J41: 2291708754
B42: ='Fund Proj - Plant'!B54 -> 2041 | C42: 2291708754 | D42: ='Fund Proj - Plant'!D54 -> 6242226 | E42: 139676009.8 | F42: =('Fund Proj - Plant'!K$13/10000)*(C42+(D42/2)+(E42/2)-(I42/2)) -> 3547001.808 | G42: ='Fund Proj - Plant'!K$11*(E42-F42) -> 27225801.59 | H42: 108903206.4 | I42: ='Fund Proj - Plant'!I54 -> 0 | J42: 2406854186
B43: ='Fund Proj - Plant'!B55 -> 2042 | C43: 2406854186 | D43: ='Fund Proj - Plant'!D55 -> 6242226 | E43: 146684396.2 | F43: =('Fund Proj - Plant'!K$13/10000)*(C43+(D43/2)+(E43/2)-(I43/2)) -> 3724976.246 | G43: ='Fund Proj - Plant'!K$11*(E43-F43) -> 28591883.99 | H43: 114367536 | I43: ='Fund Proj - Plant'!I55 -> 0 | J43: 2527463948
B44: ='Fund Proj - Plant'!B56 -> 2043 | C44: 2527463948 | D44: ='Fund Proj - Plant'!D56 -> 6242226 | E44: 154025371.9 | F44: =('Fund Proj - Plant'!K$13/10000)*(C44+(D44/2)+(E44/2)-(I44/2)) -> 3911396.621 | G44: ='Fund Proj - Plant'!K$11*(E44-F44) -> 30022795.06 | H44: 120091180.2 | I44: ='Fund Proj - Plant'!I56 -> 0 | J44: 2653797354
B45: ='Fund Proj - Plant'!B57 -> 2044 | C45: 2653797354 | D45: ='Fund Proj - Plant'!D57 -> 6550061.803 | E45: 159938230.5 | F45: =('Fund Proj - Plant'!K$13/10000)*(C45+(D45/2)+(E45/2)-(I45/2)) -> 4061550.682 | G45: ='Fund Proj - Plant'!K$11*(E45-F45) -> 31175335.97 | H45: 124701343.9 | I45: ='Fund Proj - Plant'!I57 -> 58682091.64 | J45: 2726366668
B46: ='Fund Proj - Plant'!B58 -> 2045 | C46: 2726366668 | D46: ='Fund Proj - Plant'!D58 -> 0 | E46: 155630408.6 | F46: =('Fund Proj - Plant'!K$13/10000)*(C46+(D46/2)+(E46/2)-(I46/2)) -> 3952155.718 | G46: ='Fund Proj - Plant'!K$11*(E46-F46) -> 30335650.58 | H46: 121342602.3 | I46: ='Fund Proj - Plant'!I58 -> 338822787.6 | J46: 2508886483
B47: ='Fund Proj - Plant'!B59 -> 2046 | C47: 2508886483 | D47: ='Fund Proj - Plant'!D59 -> 0 | E47: 135292251.8 | F47: =('Fund Proj - Plant'!K$13/10000)*(C47+(D47/2)+(E47/2)-(I47/2)) -> 3435678.486 | G47: ='Fund Proj - Plant'!K$11*(E47-F47) -> 26371314.66 | H47: 105485258.7 | I47: ='Fund Proj - Plant'!I59 -> 572160570.7 | J47: 2042211171
B48: ='Fund Proj - Plant'!B60 -> 2047 | C48: 2042211171 | D48: ='Fund Proj - Plant'!D60 -> 0 | E48: 105443909.6 | F48: =('Fund Proj - Plant'!K$13/10000)*(C48+(D48/2)+(E48/2)-(I48/2)) -> 2677694.891 | G48: ='Fund Proj - Plant'!K$11*(E48-F48) -> 20553242.93 | H48: 82212971.73 | I48: ='Fund Proj - Plant'!I60 -> 619606396.8 | J48: 1504817746
B49: ='Fund Proj - Plant'!B61 -> 2048 | C49: 1504817746 | D49: ='Fund Proj - Plant'!D61 -> 0 | E49: 78038009.1 | F49: =('Fund Proj - Plant'!K$13/10000)*(C49+(D49/2)+(E49/2)-(I49/2)) -> 1981735.874 | G49: ='Fund Proj - Plant'!K$11*(E49-F49) -> 15211254.64 | H49: 60845018.58 | I49: ='Fund Proj - Plant'!I61 -> 445359002.3 | J49: 1120303762
B50: ='Fund Proj - Plant'!B62 -> 2049 | C50: 1120303762 | D50: ='Fund Proj - Plant'!D62 -> 0 | E50: 54758936.67 | F50: =('Fund Proj - Plant'!K$13/10000)*(C50+(D50/2)+(E50/2)-(I50/2)) -> 1390575.573 | G50: ='Fund Proj - Plant'!K$11*(E50-F50) -> 10673672.22 | H50: 42694688.88 | I50: ='Fund Proj - Plant'!I62 -> 441265697 | J50: 721732754.2
B51: ='Fund Proj - Plant'!B63 -> 2050 | C51: 721732754.2 | D51: ='Fund Proj - Plant'!D63 -> 0 | E51: 34446175.97 | F51: =('Fund Proj - Plant'!K$13/10000)*(C51+(D51/2)+(E51/2)-(I51/2)) -> 874743.2622 | G51: ='Fund Proj - Plant'!K$11*(E51-F51) -> 6714286.542 | H51: 26857146.17 | I51: ='Fund Proj - Plant'!I63 -> 311587334.7 | J51: 437002565.6
B52: ='Fund Proj - Plant'!B64 -> 2051 | C52: 437002565.6 | D52: ='Fund Proj - Plant'!D64 -> 0 | E52: 20958196.03 | F52: =('Fund Proj - Plant'!K$13/10000)*(C52+(D52/2)+(E52/2)-(I52/2)) -> 532222.8157 | G52: ='Fund Proj - Plant'!K$11*(E52-F52) -> 4085194.643 | H52: 16340778.57 | I52: ='Fund Proj - Plant'!I64 -> 185332906.3 | J52: 268010437.9
B53: ='Fund Proj - Plant'!B65 -> 2052 | C53: 268010437.9 | D53: ='Fund Proj - Plant'!D65 -> 0 | E53: 9442344.688 | F53: =('Fund Proj - Plant'!K$13/10000)*(C53+(D53/2)+(E53/2)-(I53/2)) -> 239783.5801 | G53: ='Fund Proj - Plant'!K$11*(E53-F53) -> 1840512.222 | H53: 7362048.886 | I53: ='Fund Proj - Plant'!I65 -> 225751780.3 | J53: 49620706.45
B54: ='Fund Proj - Plant'!B66 -> 2053 | C54: 49620706.45 | D54: ='Fund Proj - Plant'!D66 -> 0 | E54: 1475094.059 | F54: =('Fund Proj - Plant'!K$13/10000)*(C54+(D54/2)+(E54/2)-(I54/2)) -> 37459.2695 | G54: ='Fund Proj - Plant'!K$11*(E54-F54) -> 287526.9579 | H54: 1150107.832 | I54: ='Fund Proj - Plant'!I66 -> 50770814.28 | J54: 1.363456249e-06
B55: ='Fund Proj - Plant'!B67 -> 2054 | C55: 1.363456249e-06 | D55: ='Fund Proj - Plant'!D67 -> 0 | E55: 8.298747159e-08 | F55: =('Fund Proj - Plant'!K$13/10000)*(C55+(D55/2)+(E55/2)-(I55/2)) -> 2.107424978e-09 | G55: ='Fund Proj - Plant'!K$11*(E55-F55) -> 1.617600932e-08 | H55: 6.470403729e-08 | I55: ='Fund Proj - Plant'!I67 -> 0 | J55: 1.428160287e-06
B56: ='Fund Proj - Plant'!B68 -> 2055 | C56: 1.428160287e-06 | D56: ='Fund Proj - Plant'!D68 -> 0 | E56: 8.692571638e-08 | F56: =('Fund Proj - Plant'!K$13/10000)*(C56+(D56/2)+(E56/2)-(I56/2)) -> 2.207434717e-09 | G56: ='Fund Proj - Plant'!K$11*(E56-F56) -> 1.694365633e-08 | H56: 6.777462533e-08 | I56: ='Fund Proj - Plant'!I68 -> 0 | J56: 1.495934912e-06
B57: ='Fund Proj - Plant'!B69 -> 2056 | C57: 1.495934912e-06 | D57: ='Fund Proj - Plant'!D69 -> 0 | E57: 9.105085409e-08 | F57: =('Fund Proj - Plant'!K$13/10000)*(C57+(D57/2)+(E57/2)-(I57/2)) -> 2.312190508e-09 | G57: ='Fund Proj - Plant'!K$11*(E57-F57) -> 1.774773272e-08 | H57: 7.099093086e-08 | I57: ='Fund Proj - Plant'!I69 -> 0 | J57: 1.566925843e-06
B58: ='Fund Proj - Plant'!B70 -> 2057 | C58: 1.566925843e-06 | D58: ='Fund Proj - Plant'!D70 -> 0 | E58: 9.537175391e-08 | F58: =('Fund Proj - Plant'!K$13/10000)*(C58+(D58/2)+(E58/2)-(I58/2)) -> 2.42191758e-09 | G58: ='Fund Proj - Plant'!K$11*(E58-F58) -> 1.858996727e-08 | H58: 7.435986906e-08 | I58: ='Fund Proj - Plant'!I70 -> 0 | J58: 1.641285712e-06
B59: ='Fund Proj - Plant'!B71 -> 2058 | C59: 1.641285712e-06 | D59: ='Fund Proj - Plant'!D71 -> 0 | E59: 9.989770589e-08 | F59: =('Fund Proj - Plant'!K$13/10000)*(C59+(D59/2)+(E59/2)-(I59/2)) -> 2.536851847e-09 | G59: ='Fund Proj - Plant'!K$11*(E59-F59) -> 1.947217081e-08 | H59: 7.788868324e-08 | I59: ='Fund Proj - Plant'!I71 -> 0 | J59: 1.719174395e-06
B61: TOTALS: | D61: =SUM(D18:D60) -> 151722401.3 | E61: 2928888025 | F61: 74370659.92 | G61: 570903473.1 | H61: 2283613892 | I61: 3249339382

Sheet Overall Return - ISFSI
B2: Ameren Missouri
B3: Callaway Energy Center Tax-Qualified Nuclear Decommissioning Trust Fund Projection
B5: Overall Annualized Return Derivation - ISFSI
B8: Amount Remaining in Fund at Completion of Decommissioning: | F8: =J54 -> -2.797460184e-07
B10: Required Annual Earnings Over Life of Fund: | F10: 0.05601605477
B13: (1) | C13: (2) | D13: (3) | E13: (4) | F13: (5) | G13: (6) | H13: (7) | I13: (8) | J13: (9)
D15: Contributions | E15: Pre | F15: Management | G15: Federal & State | H15: After | I15: Decommissioning
B16: Year | C16: Beginning-of-Year | D16: To | E16: Tax & Fee | F16: And Trust | G16: Income | H16: Tax & Fee | I16: Expenses | J16: End-of-Year
B17: Ending | C17: Balance | D17: Fund | E17: Income | F17: Fees | G17: Taxes | H17: Income | I17: (Inflated $$) | J17: Balance
B20: ='Fund Proj - ISFSI'!B32 -> 2020-09-30 | C20: N/A | D20: N/A | E20: N/A | F20: N/A | G20: N/A | H20: N/A | I20: N/A | J20: ='Fund Proj - ISFSI'!J32 -> 2414043.154
B21: ='Fund Proj - ISFSI'!B33 -> 2020 | C21: =J20 -> 2414043.154 | D21: ='Fund Proj - ISFSI'!D33 -> 108802.25 | E21: =((C21+(D21/2)-(I21/2))*F$10)*(3/12) -> 34568.12748 | F21: =('Fund Proj - ISFSI'!K$13/10000)*(C21+(D21/2)+(E21/2)-(I21/2))*(3/12) -> 932.1481285 | G21: ='Fund Proj - ISFSI'!K$11*(E21-F21) -> 6727.195871 | H21: =E21-F21-G21 -> 26908.78348 | I21: ='Fund Proj - ISFSI'!I33 -> 0 | J21: =C21+D21+H21-I21 -> 2549754.187
B22: ='Fund Proj - ISFSI'!B34 -> 2021 | C22: =J21 -> 2549754.187 | D22: ='Fund Proj - ISFSI'!D34 -> 496086.8035 | E22: =((C22+(D22/2)-(I22/2))*F$10) -> 156721.583 | F22: =('Fund Proj - ISFSI'!K$13/10000)*(C22+(D22/2)+(E22/2)-(I22/2)) -> 4314.237571 | G22: ='Fund Proj - ISFSI'!K$11*(E22-F22) -> 30481.46908 | H22: 121925.8763 | I22: ='Fund Proj - ISFSI'!I34 -> 0 | J22: 3167766.867
B23: ='Fund Proj - ISFSI'!B35 -> 2022 | C23: 3167766.867 | D23: ='Fund Proj - ISFSI'!D35 -> 516379.4047 | E23: 191908.5708 | F23: =('Fund Proj - ISFSI'!K$13/10000)*(C23+(D23/2)+(E23/2)-(I23/2)) -> 5282.866283 | G23: ='Fund Proj - ISFSI'!K$11*(E23-F23) -> 37325.14091 | H23: 149300.5637 | I23: ='Fund Proj - ISFSI'!I35 -> 0 | J23: 3833446.836
B24: ='Fund Proj - ISFSI'!B36 -> 2023 | C24: 3833446.836 | D24: ='Fund Proj - ISFSI'!D36 -> 516379.4047 | E24: 229197.3364 | F24: =('Fund Proj - ISFSI'!K$13/10000)*(C24+(D24/2)+(E24/2)-(I24/2)) -> 6309.352809 | G24: ='Fund Proj - ISFSI'!K$11*(E24-F24) -> 44577.59672 | H24: 178310.3869 | I24: ='Fund Proj - ISFSI'!I36 -> 0 | J24: 4528136.627
B25: ='Fund Proj - ISFSI'!B37 -> 2024 | C25: 4528136.627 | D25: ='Fund Proj - ISFSI'!D37 -> 516379.4047 | E25: 268111.1178 | F25: =('Fund Proj - ISFSI'!K$13/10000)*(C25+(D25/2)+(E25/2)-(I25/2)) -> 7380.572833 | G25: ='Fund Proj - ISFSI'!K$11*(E25-F25) -> 52146.109 | H25: 208584.436 | I25: ='Fund Proj - ISFSI'!I37 -> 0 | J25: 5253100.468
B26: ='Fund Proj - ISFSI'!B38 -> 2025 | C26: 5253100.468 | D26: ='Fund Proj - ISFSI'!D38 -> 516379.4047 | E26: 308720.732 | F26: =('Fund Proj - ISFSI'!K$13/10000)*(C26+(D26/2)+(E26/2)-(I26/2)) -> 8498.475804 | G26: ='Fund Proj - ISFSI'!K$11*(E26-F26) -> 60044.45125 | H26: 240177.805 | I26: ='Fund Proj - ISFSI'!I38 -> 0 | J26: 6009657.678
B27: ='Fund Proj - ISFSI'!B39 -> 2026 | C27: 6009657.678 | D27: ='Fund Proj - ISFSI'!D39 -> 516379.4047 | E27: 351100.0821 | F27: =('Fund Proj - ISFSI'!K$13/10000)*(C27+(D27/2)+(E27/2)-(I27/2)) -> 9665.096132 | G27: ='Fund Proj - ISFSI'!K$11*(E27-F27) -> 68286.9972 | H27: 273147.9888 | I27: ='Fund Proj - ISFSI'!I39 -> 0 | J27: 6799185.071
B28: ='Fund Proj - ISFSI'!B40 -> 2027 | C28: 6799185.071 | D28: ='Fund Proj - ISFSI'!D40 -> 516379.4047 | E28: 395326.2918 | F28: =('Fund Proj - ISFSI'!K$13/10000)*(C28+(D28/2)+(E28/2)-(I28/2)) -> 10882.55688 | G28: ='Fund Proj - ISFSI'!K$11*(E28-F28) -> 76888.74699 | H28: 307554.988 | I28: ='Fund Proj - ISFSI'!I40 -> 0 | J28: 7623119.464
B29: ='Fund Proj - ISFSI'!B41 -> 2028 | C29: 7623119.464 | D29: ='Fund Proj - ISFSI'!D41 -> 516379.4047 | E29: 441479.8459 | F29: =('Fund Proj - ISFSI'!K$13/10000)*(C29+(D29/2)+(E29/2)-(I29/2)) -> 12153.07363 | G29: ='Fund Proj - ISFSI'!K$11*(E29-F29) -> 85865.35445 | H29: 343461.4178 | I29: ='Fund Proj - ISFSI'!I41 -> 0 | J29: 8482960.286
B30: ='Fund Proj - ISFSI'!B42 -> 2029 | C30: 8482960.286 | D30: ='Fund Proj - ISFSI'!D42 -> 516379.4047 | E30: 489644.7365 | F30: =('Fund Proj - ISFSI'!K$13/10000)*(C30+(D30/2)+(E30/2)-(I30/2)) -> 13478.95854 | G30: ='Fund Proj - ISFSI'!K$11*(E30-F30) -> 95233.1556 | H30: 380932.6224 | I30: ='Fund Proj - ISFSI'!I42 -> 0 | J30: 9380272.313
B31: ='Fund Proj - ISFSI'!B43 -> 2030 | C31: 9380272.313 | D31: ='Fund Proj - ISFSI'!D43 -> 516379.4047 | E31: 539908.6162 | F31: =('Fund Proj - ISFSI'!K$13/10000)*(C31+(D31/2)+(E31/2)-(I31/2)) -> 14862.62449 | G31: ='Fund Proj - ISFSI'!K$11*(E31-F31) -> 105009.1983 | H31: 420036.7933 | I31: ='Fund Proj - ISFSI'!I43 -> 0 | J31: 10316688.51
B32: ='Fund Proj - ISFSI'!B44 -> 2031 | C32: 10316688.51 | D32: ='Fund Proj - ISFSI'!D44 -> 516379.4047 | E32: 592362.9572 | F32: =('Fund Proj - ISFSI'!K$13/10000)*(C32+(D32/2)+(E32/2)-(I32/2)) -> 16306.58954 | G32: ='Fund Proj - ISFSI'!K$11*(E32-F32) -> 115211.2735 | H32: 460845.0941 | I32: ='Fund Proj - ISFSI'!I44 -> 0 | J32: 11293913.01
B33: ='Fund Proj - ISFSI'!B45 -> 2032 | C33: 11293913.01 | D33: ='Fund Proj - ISFSI'!D45 -> 516379.4047 | E33: 647103.2183 | F33: =('Fund Proj - ISFSI'!K$13/10000)*(C33+(D33/2)+(E33/2)-(I33/2)) -> 17813.48148 | G33: ='Fund Proj - ISFSI'!K$11*(E33-F33) -> 125857.9474 | H33: 503431.7894 | I33: ='Fund Proj - ISFSI'!I45 -> 0 | J33: 12313724.2
B34: ='Fund Proj - ISFSI'!B46 -> 2033 | C34: 12313724.2 | D34: ='Fund Proj - ISFSI'!D46 -> 516379.4047 | E34: 704229.018 | F34: =('Fund Proj - ISFSI'!K$13/10000)*(C34+(D34/2)+(E34/2)-(I34/2)) -> 19386.04262 | G34: ='Fund Proj - ISFSI'!K$11*(E34-F34) -> 136968.5951 | H34: 547874.3803 | I34: ='Fund Proj - ISFSI'!I46 -> 0 | J34: 13377977.99
B35: ='Fund Proj - ISFSI'!B47 -> 2034 | C35: 13377977.99 | D35: ='Fund Proj - ISFSI'!D47 -> 516379.4047 | E35: 763844.3163 | F35: =('Fund Proj - ISFSI'!K$13/10000)*(C35+(D35/2)+(E35/2)-(I35/2)) -> 21027.13477 | G35: ='Fund Proj - ISFSI'!K$11*(E35-F35) -> 148563.4363 | H35: 594253.7452 | I35: ='Fund Proj - ISFSI'!I47 -> 0 | J35: 14488611.14
B36: ='Fund Proj - ISFSI'!B48 -> 2035 | C36: 14488611.14 | D36: ='Fund Proj - ISFSI'!D48 -> 516379.4047 | E36: 826057.6036 | F36: =('Fund Proj - ISFSI'!K$13/10000)*(C36+(D36/2)+(E36/2)-(I36/2)) -> 22739.74446 | G36: ='Fund Proj - ISFSI'!K$11*(E36-F36) -> 160663.5718 | H36: 642654.2873 | I36: ='Fund Proj - ISFSI'!I48 -> 0 | J36: 15647644.83
B37: ='Fund Proj - ISFSI'!B49 -> 2036 | C37: 15647644.83 | D37: ='Fund Proj - ISFSI'!D49 -> 516379.4047 | E37: 890982.0984 | F37: =('Fund Proj - ISFSI'!K$13/10000)*(C37+(D37/2)+(E37/2)-(I37/2)) -> 24526.98837 | G37: ='Fund Proj - ISFSI'!K$11*(E37-F37) -> 173291.022 | H37: 693164.088 | I37: ='Fund Proj - ISFSI'!I49 -> 0 | J37: 16857188.32
B38: ='Fund Proj - ISFSI'!B50 -> 2037 | C38: 16857188.32 | D38: ='Fund Proj - ISFSI'!D50 -> 516379.4047 | E38: 958735.9529 | F38: =('Fund Proj - ISFSI'!K$13/10000)*(C38+(D38/2)+(E38/2)-(I38/2)) -> 26392.119 | G38: ='Fund Proj - ISFSI'!K$11*(E38-F38) -> 186468.7668 | H38: 745875.0671 | I38: ='Fund Proj - ISFSI'!I50 -> 0 | J38: 18119442.8
B39: ='Fund Proj - ISFSI'!B51 -> 2038 | C39: 18119442.8 | D39: ='Fund Proj - ISFSI'!D51 -> 516379.4047 | E39: 1029442.469 | F39: =('Fund Proj - ISFSI'!K$13/10000)*(C39+(D39/2)+(E39/2)-(I39/2)) -> 28338.5306 | G39: ='Fund Proj - ISFSI'!K$11*(E39-F39) -> 200220.7876 | H39: 800883.1504 | I39: ='Fund Proj - ISFSI'!I51 -> 0 | J39: 19436705.35
B40: ='Fund Proj - ISFSI'!B52 -> 2039 | C40: 19436705.35 | D40: ='Fund Proj - ISFSI'!D52 -> 516379.4047 | E40: 1103230.32 | F40: =('Fund Proj - ISFSI'!K$13/10000)*(C40+(D40/2)+(E40/2)-(I40/2)) -> 30369.76532 | G40: ='Fund Proj - ISFSI'!K$11*(E40-F40) -> 214572.1109 | H40: 858288.4437 | I40: ='Fund Proj - ISFSI'!I52 -> 0 | J40: 20811373.2
B41: ='Fund Proj - ISFSI'!B53 -> 2040 | C41: 20811373.2 | D41: ='Fund Proj - ISFSI'!D53 -> 516379.4047 | E41: 1180233.789 | F41: =('Fund Proj - ISFSI'!K$13/10000)*(C41+(D41/2)+(E41/2)-(I41/2)) -> 32489.51969 | G41: ='Fund Proj - ISFSI'!K$11*(E41-F41) -> 229548.854 | H41: 918195.4158 | I41: ='Fund Proj - ISFSI'!I53 -> 0 | J41: 22245948.02
B42: ='Fund Proj - ISFSI'!B54 -> 2041 | C42: 22245948.02 | D42: ='Fund Proj - ISFSI'!D54 -> 516379.4047 | E42: 1260593.011 | F42: =('Fund Proj - ISFSI'!K$13/10000)*(C42+(D42/2)+(E42/2)-(I42/2)) -> 34701.65134 | G42: ='Fund Proj - ISFSI'!K$11*(E42-F42) -> 245178.272 | H42: 980713.0879 | I42: ='Fund Proj - ISFSI'!I54 -> 0 | J42: 23743040.51
B43: ='Fund Proj - ISFSI'!B55 -> 2042 | C43: 23743040.51 | D43: ='Fund Proj - ISFSI'!D55 -> 516379.4047 | E43: 1344454.226 | F43: =('Fund Proj - ISFSI'!K$13/10000)*(C43+(D43/2)+(E43/2)-(I43/2)) -> 37010.18599 | G43: ='Fund Proj - ISFSI'!K$11*(E43-F43) -> 261488.8081 | H43: 1045955.232 | I43: ='Fund Proj - ISFSI'!I55 -> 0 | J43: 25305375.15
B44: ='Fund Proj - ISFSI'!B56 -> 2043 | C44: 25305375.15 | D44: ='Fund Proj - ISFSI'!D56 -> 516379.4047 | E44: 1431970.049 | F44: =('Fund Proj - ISFSI'!K$13/10000)*(C44+(D44/2)+(E44/2)-(I44/2)) -> 39419.32481 | G44: ='Fund Proj - ISFSI'!K$11*(E44-F44) -> 278510.1448 | H44: 1114040.579 | I44: ='Fund Proj - ISFSI'!I56 -> 0 | J44: 26935795.13
B45: ='Fund Proj - ISFSI'!B57 -> 2044 | C45: 26935795.13 | D45: ='Fund Proj - ISFSI'!D57 -> 541844.6904 | E45: 1524012.976 | F45: =('Fund Proj - ISFSI'!K$13/10000)*(C45+(D45/2)+(E45/2)-(I45/2)) -> 41953.08595 | G45: ='Fund Proj - ISFSI'!K$11*(E45-F45) -> 296411.9781 | H45: 1185647.912 | I45: ='Fund Proj - ISFSI'!I57 -> 0 | J45: 28663287.74
B46: ='Fund Proj - ISFSI'!B58 -> 2045 | C46: 28663287.74 | D46: ='Fund Proj - ISFSI'!D58 -> 0 | E46: 1605604.296 | F46: =('Fund Proj - ISFSI'!K$13/10000)*(C46+(D46/2)+(E46/2)-(I46/2)) -> 44199.13483 | G46: ='Fund Proj - ISFSI'!K$11*(E46-F46) -> 312281.0322 | H46: 1249124.129 | I46: ='Fund Proj - ISFSI'!I58 -> 0 | J46: 29912411.86
B47: ='Fund Proj - ISFSI'!B59 -> 2046 | C47: 29912411.86 | D47: ='Fund Proj - ISFSI'!D59 -> 0 | E47: 1675575.301 | F47: =('Fund Proj - ISFSI'!K$13/10000)*(C47+(D47/2)+(E47/2)-(I47/2)) -> 46125.29927 | G47: ='Fund Proj - ISFSI'!K$11*(E47-F47) -> 325890.0004 | H47: 1303560.002 | I47: ='Fund Proj - ISFSI'!I59 -> 0 | J47: 31215971.87
B48: ='Fund Proj - ISFSI'!B60 -> 2047 | C48: 31215971.87 | D48: ='Fund Proj - ISFSI'!D60 -> 0 | E48: 1748595.59 | F48: =('Fund Proj - ISFSI'!K$13/10000)*(C48+(D48/2)+(E48/2)-(I48/2)) -> 48135.40449 | G48: ='Fund Proj - ISFSI'!K$11*(E48-F48) -> 340092.0371 | H48: 1360368.148 | I48: ='Fund Proj - ISFSI'!I60 -> 0 | J48: 32576340.01
B49: ='Fund Proj - ISFSI'!B61 -> 2048 | C49: 32576340.01 | D49: ='Fund Proj - ISFSI'!D61 -> 0 | E49: 1824798.046 | F49: =('Fund Proj - ISFSI'!K$13/10000)*(C49+(D49/2)+(E49/2)-(I49/2)) -> 50233.10856 | G49: ='Fund Proj - ISFSI'!K$11*(E49-F49) -> 354912.9876 | H49: 1419651.95 | I49: ='Fund Proj - ISFSI'!I61 -> 0 | J49: 33995991.96
B50: ='Fund Proj - ISFSI'!B62 -> 2049 | C50: 33995991.96 | D50: ='Fund Proj - ISFSI'!D62 -> 0 | E50: 1904321.348 | F50: =('Fund Proj - ISFSI'!K$13/10000)*(C50+(D50/2)+(E50/2)-(I50/2)) -> 52422.22896 | G50: ='Fund Proj - ISFSI'!K$11*(E50-F50) -> 370379.8238 | H50: 1481519.295 | I50: ='Fund Proj - ISFSI'!I62 -> 0 | J50: 35477511.26
B51: ='Fund Proj - ISFSI'!B63 -> 2050 | C51: 35477511.26 | D51: ='Fund Proj - ISFSI'!D63 -> 0 | E51: 1108740.502 | F51: =('Fund Proj - ISFSI'!K$13/10000)*(C51+(D51/2)+(E51/2)-(I51/2)) -> 30521.44983 | G51: ='Fund Proj - ISFSI'!K$11*(E51-F51) -> 215643.8105 | H51: 862575.2421 | I51: ='Fund Proj - ISFSI'!I63 -> 31368496.59 | J51: 4971589.916
B52: ='Fund Proj - ISFSI'!B64 -> 2051 | C52: 4971589.916 | D52: ='Fund Proj - ISFSI'!D64 -> 0 | E52: 251483.0828 | F52: =('Fund Proj - ISFSI'!K$13/10000)*(C52+(D52/2)+(E52/2)-(I52/2)) -> 6922.835664 | G52: ='Fund Proj - ISFSI'!K$11*(E52-F52) -> 48912.04942 | H52: 195648.1977 | I52: ='Fund Proj - ISFSI'!I64 -> 964215.3633 | J52: 4203022.751
B53: ='Fund Proj - ISFSI'!B65 -> 2052 | C53: 4203022.751 | D53: ='Fund Proj - ISFSI'!D65 -> 0 | E53: 136537.8193 | F53: =('Fund Proj - ISFSI'!K$13/10000)*(C53+(D53/2)+(E53/2)-(I53/2)) -> 3758.618173 | G53: ='Fund Proj - ISFSI'!K$11*(E53-F53) -> 26555.84023 | H53: 106223.3609 | I53: ='Fund Proj - ISFSI'!I65 -> 3531092.424 | J53: 778153.688
B54: ='Fund Proj - ISFSI'!B66 -> 2053 | C54: 778153.688 | D54: ='Fund Proj - ISFSI'!D66 -> 0 | E54: 21329.78202 | F54: =('Fund Proj - ISFSI'!K$13/10000)*(C54+(D54/2)+(E54/2)-(I54/2)) -> 587.1670335 | G54: ='Fund Proj - ISFSI'!K$11*(E54-F54) -> 4148.522997 | H54: 16594.09199 | I54: ='Fund Proj - ISFSI'!I66 -> 794747.78 | J54: -2.797460184e-07
B55: ='Fund Proj - ISFSI'!B67 -> 2054 | C55: -2.797460184e-07 | D55: ='Fund Proj - ISFSI'!D67 -> 0 | E55: -1.567026829e-08 | F55: =('Fund Proj - ISFSI'!K$13/10000)*(C55+(D55/2)+(E55/2)-(I55/2)) -> -4.313717287e-10 | G55: ='Fund Proj - ISFSI'!K$11*(E55-F55) -> -3.047779311e-09 | H55: -1.219111725e-08 | I55: ='Fund Proj - ISFSI'!I67 -> 0 | J55: -2.919371356e-07
B56: ='Fund Proj - ISFSI'!B68 -> 2055 | C56: -2.919371356e-07 | D56: ='Fund Proj - ISFSI'!D68 -> 0 | E56: -1.635316658e-08 | F56: =('Fund Proj - ISFSI'!K$13/10000)*(C56+(D56/2)+(E56/2)-(I56/2)) -> -4.501705783e-10 | G56: ='Fund Proj - ISFSI'!K$11*(E56-F56) -> -3.1805992e-09 | H56: -1.27223968e-08 | I56: ='Fund Proj - ISFSI'!I68 -> 0 | J56: -3.046595324e-07
B57: ='Fund Proj - ISFSI'!B69 -> 2056 | C57: -3.046595324e-07 | D57: ='Fund Proj - ISFSI'!D69 -> 0 | E57: -1.706582505e-08 | F57: =('Fund Proj - ISFSI'!K$13/10000)*(C57+(D57/2)+(E57/2)-(I57/2)) -> -4.697886674e-10 | G57: ='Fund Proj - ISFSI'!K$11*(E57-F57) -> -3.319207277e-09 | H57: -1.327682911e-08 | I57: ='Fund Proj - ISFSI'!I69 -> 0 | J57: -3.179363615e-07
B58: ='Fund Proj - ISFSI'!B70 -> 2057 | C58: -3.179363615e-07 | D58: ='Fund Proj - ISFSI'!D70 -> 0 | E58: -1.780954064e-08 | F58: =('Fund Proj - ISFSI'!K$13/10000)*(C58+(D58/2)+(E58/2)-(I58/2)) -> -4.902616977e-10 | G58: ='Fund Proj - ISFSI'!K$11*(E58-F58) -> -3.463855788e-09 | H58: -1.385542315e-08 | I58: ='Fund Proj - ISFSI'!I70 -> 0 | J58: -3.317917847e-07
B59: ='Fund Proj - ISFSI'!B71 -> 2058 | C59: -3.317917847e-07 | D59: ='Fund Proj - ISFSI'!D71 -> 0 | E59: -1.858566678e-08 | F59: =('Fund Proj - ISFSI'!K$13/10000)*(C59+(D59/2)+(E59/2)-(I59/2)) -> -5.116269271e-10 | G59: ='Fund Proj - ISFSI'!K$11*(E59-F59) -> -3.614807971e-09 | H59: -1.445923188e-08 | I59: ='Fund Proj - ISFSI'!I71 -> 0 | J59: -3.462510165e-07
B61: TOTALS: | D61: =SUM(D18:D60) -> 12507080.65 | E61: 27940924.81 | F61: 769139.3739 | G61: 5434357.088 | H61: 21737428.35 | I61: 36658552.15

Sheet Overall Return - Consol
B2: Ameren Missouri
B3: Callaway Energy Center Tax-Qualified Nuclear Decommissioning Trust Fund Projection
B5: Overall Annualized Return Derivation - Plant & ISFSI Consolidated
B8: Amount Remaining in Fund at Completion of Decommissioning: | F8: =J54 -> 1.341104507e-06
B10: Required Annual Earnings Over Life of Fund: | F10: 0.06082277286
B13: (1) | C13: (2) | D13: (3) | E13: (4) | F13: (5) | G13: (6) | H13: (7) | I13: (8) | J13: (9)
D15: Contributions | E15: Pre | F15: Management | G15: Federal & State | H15: After | I15: Decommissioning
B16: Year | C16: Beginning-of-Year | D16: To | E16: Tax & Fee | F16: And Trust | G16: Income | H16: Tax & Fee | I16: Expenses | J16: End-of-Year
B17: Ending | C17: Balance | D17: Fund | E17: Income | F17: Fees | G17: Taxes | H17: Income | I17: (Inflated $$) | J17: Balance
B20: ='Fund Proj - Consolidated'!B32 -> 2020-09-30 | C20: N/A | D20: N/A | E20: N/A | F20: N/A | G20: N/A | H20: N/A | I20: N/A | J20: ='Fund Proj - Consolidated'!J32 -> 816417131.1
B21: ='Fund Proj - Consolidated'!B33 -> 2020 | C21: =J20 -> 816417131.1 | D21: ='Fund Proj - Consolidated'!D33 -> 1689651.25 | E21: =((C21+(D21/2)-(I21/2))*F$10)*(3/12) -> 12427034.59 | F21: =('Fund Proj - Consolidated'!K$13/10000)*(C21+(D21/2)+(E21/2)-(I21/2))*(3/12) -> 308803.3028 | G21: ='Fund Proj - Consolidated'!K$11*(E21-F21) -> 2423646.258 | H21: =E21-F21-G21 -> 9694585.031 | I21: ='Fund Proj - Consolidated'!I33 -> 0 | J21: =C21+D21+H21-I21 -> 827801367.4
B22: ='Fund Proj - Consolidated'!B34 -> 2021 | C22: =J21 -> 827801367.4 | D22: ='Fund Proj - Consolidated'!D34 -> 6758605.304 | E22: =((C22+(D22/2)-(I22/2))*F$10) -> 50554713.1 | F22: =('Fund Proj - Consolidated'!K$13/10000)*(C22+(D22/2)+(E22/2)-(I22/2)) -> 1284687.04 | G22: ='Fund Proj - Consolidated'!K$11*(E22-F22) -> 9854005.213 | H22: 39416020.85 | I22: ='Fund Proj - Consolidated'!I34 -> 0 | J22: 873975993.6
B23: ='Fund Proj - Consolidated'!B35 -> 2022 | C23: 873975993.6 | D23: ='Fund Proj - Consolidated'!D35 -> 6758605.405 | E23: 53363181.91 | F23: =('Fund Proj - Consolidated'!K$13/10000)*(C23+(D23/2)+(E23/2)-(I23/2)) -> 1356055.331 | G23: ='Fund Proj - Consolidated'!K$11*(E23-F23) -> 10401425.31 | H23: 41605701.26 | I23: ='Fund Proj - Consolidated'!I35 -> 0 | J23: 922340300.2
B24: ='Fund Proj - Consolidated'!B36 -> 2023 | C24: 922340300.2 | D24: ='Fund Proj - Consolidated'!D36 -> 6758605.405 | E24: 56304833.14 | F24: =('Fund Proj - Consolidated'!K$13/10000)*(C24+(D24/2)+(E24/2)-(I24/2)) -> 1430808.029 | G24: ='Fund Proj - Consolidated'!K$11*(E24-F24) -> 10974805.02 | H24: 43899220.09 | I24: ='Fund Proj - Consolidated'!I36 -> 0 | J24: 972998125.7
B25: ='Fund Proj - Consolidated'!B37 -> 2024 | C25: 972998125.7 | D25: ='Fund Proj - Consolidated'!D37 -> 6758605.405 | E25: 59385982.56 | F25: =('Fund Proj - Consolidated'!K$13/10000)*(C25+(D25/2)+(E25/2)-(I25/2)) -> 1509105.63 | G25: ='Fund Proj - Consolidated'!K$11*(E25-F25) -> 11575375.39 | H25: 46301501.54 | I25: ='Fund Proj - Consolidated'!I37 -> 0 | J25: 1026058233
B26: ='Fund Proj - Consolidated'!B38 -> 2025 | C26: 1026058233 | D26: ='Fund Proj - Consolidated'!D38 -> 6758605.405 | E26: 62613245.39 | F26: =('Fund Proj - Consolidated'!K$13/10000)*(C26+(D26/2)+(E26/2)-(I26/2)) -> 1591116.237 | G26: ='Fund Proj - Consolidated'!K$11*(E26-F26) -> 12204425.83 | H26: 48817703.32 | I26: ='Fund Proj - Consolidated'!I38 -> 0 | J26: 1081634541
B27: ='Fund Proj - Consolidated'!B39 -> 2026 | C27: 1081634541 | D27: ='Fund Proj - Consolidated'!D39 -> 6758605.405 | E27: 65993550.59 | F27: =('Fund Proj - Consolidated'!K$13/10000)*(C27+(D27/2)+(E27/2)-(I27/2)) -> 1677015.929 | G27: ='Fund Proj - Consolidated'!K$11*(E27-F27) -> 12863306.93 | H27: 51453227.73 | I27: ='Fund Proj - Consolidated'!I39 -> 0 | J27: 1139846375
B28: ='Fund Proj - Consolidated'!B40 -> 2027 | C28: 1139846375 | D28: ='Fund Proj - Consolidated'!D40 -> 6758605.405 | E28: 69534155.7 | F28: =('Fund Proj - Consolidated'!K$13/10000)*(C28+(D28/2)+(E28/2)-(I28/2)) -> 1766989.133 | G28: ='Fund Proj - Consolidated'!K$11*(E28-F28) -> 13553433.31 | H28: 54213733.25 | I28: ='Fund Proj - Consolidated'!I40 -> 0 | J28: 1200818713
B29: ='Fund Proj - Consolidated'!B41 -> 2028 | C29: 1200818713 | D29: ='Fund Proj - Consolidated'!D41 -> 6758605.405 | E29: 73242662.4 | F29: =('Fund Proj - Consolidated'!K$13/10000)*(C29+(D29/2)+(E29/2)-(I29/2)) -> 1861229.021 | G29: ='Fund Proj - Consolidated'!K$11*(E29-F29) -> 14276286.68 | H29: 57105146.71 | I29: ='Fund Proj - Consolidated'!I41 -> 0 | J29: 1264682465
B30: ='Fund Proj - Consolidated'!B42 -> 2029 | C30: 1264682465 | D30: ='Fund Proj - Consolidated'!D42 -> 6758605.405 | E30: 77127032.89 | F30: =('Fund Proj - Consolidated'!K$13/10000)*(C30+(D30/2)+(E30/2)-(I30/2)) -> 1959937.927 | G30: ='Fund Proj - Consolidated'!K$11*(E30-F30) -> 15033418.99 | H30: 60133675.97 | I30: ='Fund Proj - Consolidated'!I42 -> 0 | J30: 1331574747
B31: ='Fund Proj - Consolidated'!B43 -> 2030 | C31: 1331574747 | D31: ='Fund Proj - Consolidated'!D43 -> 6758605.405 | E31: 81195606.93 | F31: =('Fund Proj - Consolidated'!K$13/10000)*(C31+(D31/2)+(E31/2)-(I31/2)) -> 2063327.779 | G31: ='Fund Proj - Consolidated'!K$11*(E31-F31) -> 15826455.83 | H31: 63305823.32 | I31: ='Fund Proj - Consolidated'!I43 -> 0 | J31: 1401639175
B32: ='Fund Proj - Consolidated'!B44 -> 2031 | C32: 1401639175 | D32: ='Fund Proj - Consolidated'!D44 -> 6758605.405 | E32: 85457119.76 | F32: =('Fund Proj - Consolidated'!K$13/10000)*(C32+(D32/2)+(E32/2)-(I32/2)) -> 2171620.557 | G32: ='Fund Proj - Consolidated'!K$11*(E32-F32) -> 16657099.84 | H32: 66628399.36 | I32: ='Fund Proj - Consolidated'!I44 -> 0 | J32: 1475026180
B33: ='Fund Proj - Consolidated'!B45 -> 2032 | C33: 1475026180 | D33: ='Fund Proj - Consolidated'!D45 -> 6758605.405 | E33: 89920720.89 | F33: =('Fund Proj - Consolidated'!K$13/10000)*(C33+(D33/2)+(E33/2)-(I33/2)) -> 2285048.765 | G33: ='Fund Proj - Consolidated'!K$11*(E33-F33) -> 17527134.42 | H33: 70108537.7 | I33: ='Fund Proj - Consolidated'!I45 -> 0 | J33: 1551893323
B34: ='Fund Proj - Consolidated'!B46 -> 2033 | C34: 1551893323 | D34: ='Fund Proj - Consolidated'!D46 -> 6758605.405 | E34: 94595993.67 | F34: =('Fund Proj - Consolidated'!K$13/10000)*(C34+(D34/2)+(E34/2)-(I34/2)) -> 2403855.934 | G34: ='Fund Proj - Consolidated'!K$11*(E34-F34) -> 18438427.55 | H34: 73753710.19 | I34: ='Fund Proj - Consolidated'!I46 -> 0 | J34: 1632405639
B35: ='Fund Proj - Consolidated'!B47 -> 2034 | C35: 1632405639 | D35: ='Fund Proj - Consolidated'!D47 -> 6758605.405 | E35: 99492975.95 | F35: =('Fund Proj - Consolidated'!K$13/10000)*(C35+(D35/2)+(E35/2)-(I35/2)) -> 2528297.144 | G35: ='Fund Proj - Consolidated'!K$11*(E35-F35) -> 19392935.76 | H35: 77571743.05 | I35: ='Fund Proj - Consolidated'!I47 -> 0 | J35: 1716735987
B36: ='Fund Proj - Consolidated'!B48 -> 2035 | C36: 1716735987 | D36: ='Fund Proj - Consolidated'!D48 -> 6758605.405 | E36: 104622181.6 | F36: =('Fund Proj - Consolidated'!K$13/10000)*(C36+(D36/2)+(E36/2)-(I36/2)) -> 2658639.571 | G36: ='Fund Proj - Consolidated'!K$11*(E36-F36) -> 20392708.4 | H36: 81570833.61 | I36: ='Fund Proj - Consolidated'!I48 -> 0 | J36: 1805065426
B37: ='Fund Proj - Consolidated'!B49 -> 2036 | C37: 1805065426 | D37: ='Fund Proj - Consolidated'!D49 -> 6758605.405 | E37: 109994623 | F37: =('Fund Proj - Consolidated'!K$13/10000)*(C37+(D37/2)+(E37/2)-(I37/2)) -> 2795163.061 | G37: ='Fund Proj - Consolidated'!K$11*(E37-F37) -> 21439891.99 | H37: 85759567.94 | I37: ='Fund Proj - Consolidated'!I49 -> 0 | J37: 1897583600
B38: ='Fund Proj - Consolidated'!B50 -> 2037 | C38: 1897583600 | D38: ='Fund Proj - Consolidated'!D50 -> 6758605.405 | E38: 115621834.8 | F38: =('Fund Proj - Consolidated'!K$13/10000)*(C38+(D38/2)+(E38/2)-(I38/2)) -> 2938160.73 | G38: ='Fund Proj - Consolidated'!K$11*(E38-F38) -> 22536734.82 | H38: 90146939.28 | I38: ='Fund Proj - Consolidated'!I50 -> 0 | J38: 1994489144
B39: ='Fund Proj - Consolidated'!B51 -> 2038 | C39: 1994489144 | D39: ='Fund Proj - Consolidated'!D51 -> 6758605.405 | E39: 121515898.8 | F39: =('Fund Proj - Consolidated'!K$13/10000)*(C39+(D39/2)+(E39/2)-(I39/2)) -> 3087939.595 | G39: ='Fund Proj - Consolidated'!K$11*(E39-F39) -> 23685591.83 | H39: 94742367.34 | I39: ='Fund Proj - Consolidated'!I51 -> 0 | J39: 2095990117
B40: ='Fund Proj - Consolidated'!B52 -> 2039 | C40: 2095990117 | D40: ='Fund Proj - Consolidated'!D52 -> 6758605.405 | E40: 127689469.4 | F40: =('Fund Proj - Consolidated'!K$13/10000)*(C40+(D40/2)+(E40/2)-(I40/2)) -> 3244821.232 | G40: ='Fund Proj - Consolidated'!K$11*(E40-F40) -> 24888929.63 | H40: 99555718.52 | I40: ='Fund Proj - Consolidated'!I52 -> 0 | J40: 2202304441
B41: ='Fund Proj - Consolidated'!B53 -> 2040 | C41: 2202304441 | D41: ='Fund Proj - Consolidated'!D53 -> 6758605.405 | E41: 134155801.4 | F41: =('Fund Proj - Consolidated'!K$13/10000)*(C41+(D41/2)+(E41/2)-(I41/2)) -> 3409142.467 | G41: ='Fund Proj - Consolidated'!K$11*(E41-F41) -> 26149331.78 | H41: 104597327.1 | I41: ='Fund Proj - Consolidated'!I53 -> 0 | J41: 2313660374
B42: ='Fund Proj - Consolidated'!B54 -> 2041 | C42: 2313660374 | D42: ='Fund Proj - Consolidated'!D54 -> 6758605.405 | E42: 140928777.9 | F42: =('Fund Proj - Consolidated'!K$13/10000)*(C42+(D42/2)+(E42/2)-(I42/2)) -> 3581256.098 | G42: ='Fund Proj - Consolidated'!K$11*(E42-F42) -> 27469504.37 | H42: 109878017.5 | I42: ='Fund Proj - Consolidated'!I54 -> 0 | J42: 2430296996
B43: ='Fund Proj - Consolidated'!B55 -> 2042 | C43: 2430296996 | D43: ='Fund Proj - Consolidated'!D55 -> 6758605.405 | E43: 148022940.8 | F43: =('Fund Proj - Consolidated'!K$13/10000)*(C43+(D43/2)+(E43/2)-(I43/2)) -> 3761531.654 | G43: ='Fund Proj - Consolidated'!K$11*(E43-F43) -> 28852281.82 | H43: 115409127.3 | I43: ='Fund Proj - Consolidated'!I55 -> 0 | J43: 2552464729
B44: ='Fund Proj - Consolidated'!B56 -> 2043 | C44: 2552464729 | D44: ='Fund Proj - Consolidated'!D56 -> 6758605.405 | E44: 155453521 | F44: =('Fund Proj - Consolidated'!K$13/10000)*(C44+(D44/2)+(E44/2)-(I44/2)) -> 3950356.189 | G44: ='Fund Proj - Consolidated'!K$11*(E44-F44) -> 30300632.97 | H44: 121202531.9 | I44: ='Fund Proj - Consolidated'!I56 -> 0 | J44: 2680425866
B45: ='Fund Proj - Consolidated'!B57 -> 2044 | C45: 2680425866 | D45: ='Fund Proj - Consolidated'!D57 -> 7091906.493 | E45: 161462004.6 | F45: =('Fund Proj - Consolidated'!K$13/10000)*(C45+(D45/2)+(E45/2)-(I45/2)) -> 4103042.664 | G45: ='Fund Proj - Consolidated'!K$11*(E45-F45) -> 31471792.39 | H45: 125887169.5 | I45: ='Fund Proj - Consolidated'!I57 -> 58682091.64 | J45: 2754722851
B46: ='Fund Proj - Consolidated'!B58 -> 2045 | C46: 2754722851 | D46: ='Fund Proj - Consolidated'!D58 -> 0 | E46: 157245811.5 | F46: =('Fund Proj - Consolidated'!K$13/10000)*(C46+(D46/2)+(E46/2)-(I46/2)) -> 3995901.544 | G46: ='Fund Proj - Consolidated'!K$11*(E46-F46) -> 30649982 | H46: 122599928 | I46: ='Fund Proj - Consolidated'!I58 -> 338822787.6 | J46: 2538499991
B47: ='Fund Proj - Consolidated'!B59 -> 2046 | C47: 2538499991 | D47: ='Fund Proj - Consolidated'!D59 -> 0 | E47: 136998412.2 | F47: =('Fund Proj - Consolidated'!K$13/10000)*(C47+(D47/2)+(E47/2)-(I47/2)) -> 3481378.368 | G47: ='Fund Proj - Consolidated'!K$11*(E47-F47) -> 26703406.76 | H47: 106813627 | I47: ='Fund Proj - Consolidated'!I59 -> 572160570.7 | J47: 2073153048
B48: ='Fund Proj - Consolidated'!B60 -> 2047 | C48: 2073153048 | D48: ='Fund Proj - Consolidated'!D60 -> 0 | E48: 107251827.4 | F48: =('Fund Proj - Consolidated'!K$13/10000)*(C48+(D48/2)+(E48/2)-(I48/2)) -> 2725463.644 | G48: ='Fund Proj - Consolidated'!K$11*(E48-F48) -> 20905272.74 | H48: 83621090.97 | I48: ='Fund Proj - Consolidated'!I60 -> 619606396.8 | J48: 1537167742
B49: ='Fund Proj - Consolidated'!B61 -> 2048 | C49: 1537167742 | D49: ='Fund Proj - Consolidated'!D61 -> 0 | E49: 79950819.69 | F49: =('Fund Proj - Consolidated'!K$13/10000)*(C49+(D49/2)+(E49/2)-(I49/2)) -> 2031695.476 | G49: ='Fund Proj - Consolidated'!K$11*(E49-F49) -> 15583824.84 | H49: 62335299.37 | I49: ='Fund Proj - Consolidated'!I61 -> 445359002.3 | J49: 1154144039
B50: ='Fund Proj - Consolidated'!B62 -> 2049 | C50: 1154144039 | D50: ='Fund Proj - Consolidated'!D62 -> 0 | E50: 56778739.09 | F50: =('Fund Proj - Consolidated'!K$13/10000)*(C50+(D50/2)+(E50/2)-(I50/2)) -> 1442850.84 | G50: ='Fund Proj - Consolidated'!K$11*(E50-F50) -> 11067177.65 | H50: 44268710.6 | I50: ='Fund Proj - Consolidated'!I62 -> 441265697 | J50: 757147052.4
B51: ='Fund Proj - Consolidated'!B63 -> 2050 | C51: 757147052.4 | D51: ='Fund Proj - Consolidated'!D63 -> 0 | E51: 35622020.88 | F51: =('Fund Proj - Consolidated'!K$13/10000)*(C51+(D51/2)+(E51/2)-(I51/2)) -> 905220.2208 | G51: ='Fund Proj - Consolidated'!K$11*(E51-F51) -> 6943360.131 | H51: 27773440.52 | I51: ='Fund Proj - Consolidated'!I63 -> 342955831.3 | J51: 441964661.6
B52: ='Fund Proj - Consolidated'!B64 -> 2051 | C52: 441964661.6 | D52: ='Fund Proj - Consolidated'!D64 -> 0 | E52: 21215962.47 | F52: =('Fund Proj - Consolidated'!K$13/10000)*(C52+(D52/2)+(E52/2)-(I52/2)) -> 539136.123 | G52: ='Fund Proj - Consolidated'!K$11*(E52-F52) -> 4135365.269 | H52: 16541461.08 | I52: ='Fund Proj - Consolidated'!I64 -> 186297121.7 | J52: 272209001
B53: ='Fund Proj - Consolidated'!B65 -> 2052 | C53: 272209001 | D53: ='Fund Proj - Consolidated'!D65 -> 0 | E53: 9583696.192 | F53: =('Fund Proj - Consolidated'!K$13/10000)*(C53+(D53/2)+(E53/2)-(I53/2)) -> 243539.119 | G53: ='Fund Proj - Consolidated'!K$11*(E53-F53) -> 1868031.415 | H53: 7472125.659 | I53: ='Fund Proj - Consolidated'!I65 -> 229282872.8 | J53: 50398253.88
B54: ='Fund Proj - Consolidated'!B66 -> 2053 | C54: 50398253.88 | D54: ='Fund Proj - Consolidated'!D66 -> 0 | E54: 1497181.314 | F54: =('Fund Proj - Consolidated'!K$13/10000)*(C54+(D54/2)+(E54/2)-(I54/2)) -> 38046.09527 | G54: ='Fund Proj - Consolidated'!K$11*(E54-F54) -> 291827.0438 | H54: 1167308.175 | I54: ='Fund Proj - Consolidated'!I66 -> 51565562.06 | J54: 1.341104507e-06
B55: ='Fund Proj - Consolidated'!B67 -> 2054 | C55: 1.341104507e-06 | D55: ='Fund Proj - Consolidated'!D67 -> 0 | E55: 8.156969484e-08 | F55: =('Fund Proj - Consolidated'!K$13/10000)*(C55+(D55/2)+(E55/2)-(I55/2)) -> 2.072834032e-09 | G55: ='Fund Proj - Consolidated'!K$11*(E55-F55) -> 1.589937216e-08 | H55: 6.359748865e-08 | I55: ='Fund Proj - Consolidated'!I67 -> 0 | J55: 1.404701996e-06
B56: ='Fund Proj - Consolidated'!B68 -> 2055 | C56: 1.404701996e-06 | D56: ='Fund Proj - Consolidated'!D68 -> 0 | E56: 8.543787045e-08 | F56: =('Fund Proj - Consolidated'!K$13/10000)*(C56+(D56/2)+(E56/2)-(I56/2)) -> 2.171131397e-09 | G56: ='Fund Proj - Consolidated'!K$11*(E56-F56) -> 1.665334781e-08 | H56: 6.661339124e-08 | I56: ='Fund Proj - Consolidated'!I68 -> 0 | J56: 1.471315387e-06
B57: ='Fund Proj - Consolidated'!B69 -> 2056 | C57: 1.471315387e-06 | D57: ='Fund Proj - Consolidated'!D69 -> 0 | E57: 8.948948161e-08 | F57: =('Fund Proj - Consolidated'!K$13/10000)*(C57+(D57/2)+(E57/2)-(I57/2)) -> 2.274090192e-09 | G57: ='Fund Proj - Consolidated'!K$11*(E57-F57) -> 1.744307828e-08 | H57: 6.977231314e-08 | I57: ='Fund Proj - Consolidated'!I69 -> 0 | J57: 1.5410877e-06
B58: ='Fund Proj - Consolidated'!B70 -> 2057 | C58: 1.5410877e-06 | D58: ='Fund Proj - Consolidated'!D70 -> 0 | E58: 9.373322717e-08 | F58: =('Fund Proj - Consolidated'!K$13/10000)*(C58+(D58/2)+(E58/2)-(I58/2)) -> 2.381931471e-09 | G58: ='Fund Proj - Consolidated'!K$11*(E58-F58) -> 1.827025914e-08 | H58: 7.308103656e-08 | I58: ='Fund Proj - Consolidated'!I70 -> 0 | J58: 1.614168737e-06
B59: ='Fund Proj - Consolidated'!B71 -> 2058 | C59: =J58 -> 1.614168737e-06 | D59: ='Fund Proj - Consolidated'!D71 -> 0 | E59: 9.817821846e-08 | F59: =('Fund Proj - Consolidated'!K$13/10000)*(C59+(D59/2)+(E59/2)-(I59/2)) -> 2.494886769e-09 | G59: ='Fund Proj - Consolidated'!K$11*(E59-F59) -> 1.913666634e-08 | H59: =E59-F59-G59 -> 7.654666535e-08 | I59: ='Fund Proj - Consolidated'!I71 -> 0 | J59: 1.690715402e-06
B61: TOTALS: | D61: =SUM(D18:D60) -> 164229481.9 | E61: 2956820333 | F61: 75131182.45 | G61: 576337830.2 | H61: 2305351321 | I61: 3285997934
